{"text_format":"1","workbook":"xlsx","n_sheets":7,"sheets":["Hodnoceni","Nabidka1","Nabidka2","Nabidka3","Nabidka4","Nabidka5","Nabidka_MIN"],"not_rendered":{"charts":0,"images":0,"macros":1,"external_links":1,"defined_names":28,"comments":0,"pivot_tables":0},"unopened":[],"bounds":{"document_bytes":16777216,"sheet_cells":100000,"rows_first":2000,"rows_last":500,"rows_between":2000,"halvings":0,"cell_chars":16384,"cell_head_chars":4096},"cells_cut":0,"cells_raw":0,"read":"whole","date_system":"1900"}

{"sheet":"Hodnoceni","index":0,"n_rows":24,"n_cols":6,"rows_kept":24,"cut":false,"hidden":false,"merged":[[15,1,15,6],[1,1,1,6],[21,1,21,6],[22,1,22,6],[23,1,23,6],[17,1,17,6],[18,1,18,6],[16,1,16,6]]}
[]
[null,"Příloha č. 8 k Zadávací dokumentaci - Modelový příklad hodnocení pěti nabídek část 1"]
[]
[null,"Tabulka výsledného hodnocení nabídek - počet bodů dle položek hodnocené nabídky"]
[null,"# nabídky","účastník ZŘ","počet bodů celkem","počet bodů přepočtených dle váhy","pořadí nabídky"]
[null,{"$f":"[1]Nabidka1!$D$1","v":1},{"$f":"[1]Nabidka1!$F$1","v":"AA"},{"$f":"Nabidka1!$I$5","v":{"$error":"#DIV/0!"}},{"$f":"Nabidka1!$J$5","v":{"$error":"#DIV/0!"}},{"$f":"RANK(E6,$E$6:$E$10,0)","v":{"$error":"#DIV/0!"}}]
[null,{"$f":"[1]Nabidka2!$D$1","v":2},{"$f":"[1]Nabidka2!$F$1","v":"BB"},{"$f":"Nabidka2!$I$5","v":{"$error":"#DIV/0!"}},{"$f":"Nabidka2!$J$5","v":{"$error":"#DIV/0!"}},{"$f":"RANK(E7,$E$6:$E$10,0)","v":{"$error":"#DIV/0!"}}]
[null,{"$f":"[1]Nabidka3!$D$1","v":3},{"$f":"[1]Nabidka3!$F$1","v":"CC"},{"$f":"Nabidka3!$I$5","v":{"$error":"#DIV/0!"}},{"$f":"Nabidka3!$J$5","v":{"$error":"#DIV/0!"}},{"$error":"#DIV/0!"}]
[null,{"$f":"[1]Nabidka4!$D$1","v":4},{"$f":"[1]Nabidka4!$F$1","v":"DD"},{"$f":"Nabidka4!$I$5","v":{"$error":"#DIV/0!"}},{"$f":"Nabidka4!$J$5","v":{"$error":"#DIV/0!"}},{"$error":"#DIV/0!"}]
[null,{"$f":"[1]Nabidka5!$D$1","v":5},{"$f":"[1]Nabidka5!$F$1","v":"EE"},{"$f":"Nabidka5!$I$5","v":{"$error":"#DIV/0!"}},{"$f":"Nabidka5!$J$5","v":{"$error":"#DIV/0!"}},{"$error":"#DIV/0!"}]
[]
[]
[]
[null,"Popis Listů:"]
[null,"Hodnoceni = celkové vyhodnocení "]
[null,"Nabidka1..5 = body a přepočtené body podle vah za nabídku, celkem 5 listů pro 5 nabídek"]
[null,"Nabidka_MIN = vyhodnocení a zobrazení minimální nabídkové ceny ke každé položce ze všech nabídek, nebo nejvyššího počtu bodů za každou položku, společné pro všechny listy a nabidky."]
[]
[null,"Nabidka1..Nabidka5 = nabídka účastníka zadávacího řízení. Identifikace listu i nabídky je podžlucena a připravena pro celkem 5 nabídek na 5 listech, tj. 1 list na 1 nabídku.  \nDoplní se body za příklady a lhůty."]
[]
[null,"Komentář:"]
[null,"Na listech Nabidka1 .. Nabidka5 lze upravovat vlastní hodnoty nabídky a modelovat tak vliv změny položky na pořadí (na hodnocení má vliv vždy nejvýhodnější nabídka za každou položku, která vstupuje do výpočtů bodů); ostatní listy se neupravují ani nevyplňují."]
[null,"Všechny listy jsou propojené, změny provedené na listech Nabídka_1..5 se vyhodnotí automaticky na listu Hodnoceni."]
[null,"Na listech Nabidka1 .. Nabidka5 musí výt vyplněné hodnoty větší nebo rovno 1. Chybové zobrazení #DIV/0! zmizí po vyplnění položek hodnocení."]

{"sheet":"Nabidka1","index":1,"n_rows":120,"n_cols":10,"rows_kept":120,"cut":false,"hidden":false,"merged":[[48,1,48,3],[59,1,59,3],[109,1,109,3],[113,1,113,3],[65,1,65,3],[82,1,82,3],[87,1,87,3],[107,1,107,3],[99,1,99,4],[1,1,1,6],[7,1,7,6],[31,1,31,5],[35,1,35,5],[42,1,42,3]]}
[null,"Příloha č. 2A zadávací dokumentace\nZávazný formulář pro účely hodnocení část 1","Číslo nabídky:",1,"Účastník ZŘ:","AA"]
[null,"Účastník zadávacího řízení vyplňuje nebo upravuje žlutě podbarvené položky. \nU položek vyplněných zadavatelem je oprávněn změnit hodnotu pouze na vyšší - je-li uvedena mininimální hodnota, resp. na nižší - je-li uvedena maximální hodnota.",null,null,null,null,null,null,"Body za položky","Body za položky s vahou"]
[null,"Zeleně podbarvená pole doplňuje zadavatel na základě hodnocení.",null,null,null,null,null,null,"Celkem","Celkem"]
[]
[null,"Předmět plnění: ","Schéma hodnocení:","Váha:",null,null,null,null,{"$f":"SUM(I10:I120)","v":{"$error":"#DIV/0!"}},{"$f":"SUM(J10:J120)","v":{"$error":"#DIV/0!"}}]
[null,"Servisní služby","Cena",0.4]
[]
[null,"1. Cena za zajištění podpory SIS s garantovanou dostupností: (cena v Kč za čtvrtletí bez DPH)"]
["Číslo\n skupiny","Skupina funkčních bloků\nFunkční bloky jsou seskupeny a ohraničeny dvojitou čarou, vyplněná cena služeb pokrývá vždy celou skupinu funkčních bloků, resp. jejich seskupení ","Nabídka pro část veřejné zakázky ","Garantovaná dostupnost v %\n(minimální)","Lhůta na odstranění vady kat. A v hodinách (maximální)","Provozní režim\n(minimální)","Cena v Kč","Váha položky v %","Body za položku","Body za položku s vahou"]
[1,"RICHARD - Generátor tvorby projektů",1,0.9,48,"5x8",null,5.1948051948051957E-3,{"$f":"Nabidka_MIN!G10/G10*100","v":{"$error":"#DIV/0!"}},{"$f":"I10*H10","v":{"$error":"#DIV/0!"}}]
[1,"ISAAC - Konvertor popisu dat a kontrol",1,0.9,48,"5x8",null,2.0779220779220783E-2,{"$f":"Nabidka_MIN!G11/G11*100","v":{"$error":"#DIV/0!"}},{"$f":"I11*H11","v":{"$error":"#DIV/0!"}}]
[1,"ENRICO - Generátor grafické podoby výkazu",1,0.9,48,"5x8",null,2.5974025974025972E-2,{"$f":"Nabidka_MIN!G12/G12*100","v":{"$error":"#DIV/0!"}},{"$error":"#DIV/0!"}]
[2,"Požadavky",1,0.9,48,"5x8",null,8.3116883116883117E-3,{"$f":"Nabidka_MIN!G13/G13*100","v":{"$error":"#DIV/0!"}},{"$error":"#DIV/0!"}]
[2,"HSU - Harmonogram statistických úloh",1,0.9,48,"5x8",null,3.1168831168831169E-3,{"$f":"Nabidka_MIN!G14/G14*100","v":{"$error":"#DIV/0!"}},{"$error":"#DIV/0!"}]
[2,"Integrace a požadavky na HW, OMI - Obsahově metodická integrace",1,0.9,48,"5x8",null,3.1168831168831169E-3,{"$f":"Nabidka_MIN!G15/G15*100","v":{"$error":"#DIV/0!"}},{"$error":"#DIV/0!"}]
[5,"C-I/O - Centrál IN/OUT",1,0.9,48,"5x8",null,5.1948051948051957E-3,{"$f":"Nabidka_MIN!G16/G16*100","v":{"$error":"#DIV/0!"}},{"$error":"#DIV/0!"}]
[5,"SMS-KVALITA - Statistický metainformační systém, kvalita",1,0.9,48,"5x8",null,2.0779220779220783E-2,{"$f":"Nabidka_MIN!G17/G17*100","v":{"$error":"#DIV/0!"}},{"$error":"#DIV/0!"}]
[5,"SMS-VYSTUPY (včetně CASOVE RADY) - Statistický metainformační systém, výstupy a časové ředy",1,0.9,48,"5x8",null,1.5584415584415584E-2,{"$f":"Nabidka_MIN!G18/G18*100","v":{"$error":"#DIV/0!"}},{"$error":"#DIV/0!"}]
[5,"GVO - Generátor výstupních objektů",1,0.9,48,"5x8",null,1.0389610389610391E-2,{"$f":"Nabidka_MIN!G19/G19*100","v":{"$error":"#DIV/0!"}},{"$error":"#DIV/0!"}]
[8,"Registr uživatelů diseminačních produktů",1,0.9,48,"5x8",null,1.0389610389610391E-2,{"$f":"Nabidka_MIN!G20/G20*100","v":{"$error":"#DIV/0!"}},{"$error":"#DIV/0!"}]
[8,"Monitoring diseminace a evidence zpětné vazby",1,0.9,48,"5x8",null,5.1948051948051957E-3,{"$f":"Nabidka_MIN!G21/G21*100","v":{"$error":"#DIV/0!"}},{"$error":"#DIV/0!"}]
[8,"Plánování a řízení diseminace (Katalog produktů)",1,0.9,48,"5x8",null,1.0389610389610391E-2,{"$f":"Nabidka_MIN!G22/G22*100","v":{"$error":"#DIV/0!"}},{"$error":"#DIV/0!"}]
[8,"Podpora ekonomických procesů diseminace",1,0.9,48,"5x8",null,1.0389610389610391E-2,{"$f":"Nabidka_MIN!G23/G23*100","v":{"$error":"#DIV/0!"}},{"$error":"#DIV/0!"}]
[8,"Vnitřní rozhraní SIS/DISEMINACE",1,0.9,48,"5x8",null,5.1948051948051957E-3,{"$f":"Nabidka_MIN!G24/G24*100","v":{"$error":"#DIV/0!"}},{"$error":"#DIV/0!"}]
[11,"DANTE - Hromadné pořizování výkazů",1,0.92,24,"5x10",null,4.6753246753246755E-2,{"$f":"Nabidka_MIN!G25/G25*100","v":{"$error":"#DIV/0!"}},{"$error":"#DIV/0!"}]
[12,"SMS-CENTRAL, Statistický metainformační systém, řízení centrálního zpracování",1,0.92,24,"5x10",null,1.7662337662337664E-2,{"$f":"Nabidka_MIN!G26/G26*100","v":{"$error":"#DIV/0!"}},{"$error":"#DIV/0!"}]
[13,"DANTE WEB, Pořizování statistických formulářů zpravodajskými jednotkami",1,0.92,24,"5x10",null,4.6753246753246755E-2,{"$f":"Nabidka_MIN!G27/G27*100","v":{"$error":"#DIV/0!"}},{"$error":"#DIV/0!"}]
[14,"Web CZSO - Vnější rozhraní SIS/DISEMINACE",1,0.92,24,"5x10",null,7.2727272727272738E-2,{"$f":"Nabidka_MIN!G28/G28*100","v":{"$error":"#DIV/0!"}},{"$error":"#DIV/0!"}]
[14,"Záložní lokalita pro Web CZSO",1,0.92,24,"5x10",null,3.1168831168831169E-2,{"$f":"Nabidka_MIN!G29/G29*100","v":{"$error":"#DIV/0!"}},{"$error":"#DIV/0!"}]
[15,"SSO, ESB, JBOSS \n(Single-Sign-On systém jednotného přihlašování, \nEnerprise service bus)",1,0.92,24,"5x10",null,2.4935064935064935E-2,{"$f":"Nabidka_MIN!G30/G30*100","v":{"$error":"#DIV/0!"}},{"$error":"#DIV/0!"}]
[]
[null,"Součet cen za zajištění podpory SIS s garantovanou dostupností: (cena v Kč za čtvrtletí bez DPH) ",null,null,null,null,{"$f":"SUM(G10:G30)","v":0}]
[]
[]
[]
[null,"Součet cen za zajištění podpory SIS s garantovanou dostupností: (cena v Kč za čtvrtletí bez DPH) součet cen z každého řádku za skupinou funkčních bloků přepočtenou (vynásobenou) na období plnění 4 let, tj. 16 čtvrtletí.\n\nPro tento součet cen stanovuje zadavatel maximálně přípustnou hodnotu, která pro \nčást 1 činí 19 mil. Kč\ns tím, že její překročení je důvodem pro vyřazení nabídky. ",null,null,null,null,{"$f":"G32*16","v":0}]
[]
[]
[]
[null,"Předmět plnění: ","Schéma hodnocení:","Váha:"]
[null,"Služby rozvoje","Cena",0.16]
[]
[null,"2.a Cena za MD při obecném požadavku rozvoj na poskytnutí MD v termínech v kategorii A,B,C (cena v Kč za MD bez DPH)"]
[null,null,"Minimální hodnota pro hodnocení","Maximální hodnota","Nabízená hodnota "]
[null,"Prioritní MD NDB - kategorie A – poskytnutí služby se začátkem realizace do 1 dne",1,18000,null,null,null,8.0000000000000002E-3,{"$f":"Nabidka_MIN!E45/E45*100","v":{"$error":"#DIV/0!"}},{"$f":"I45*H45","v":{"$error":"#DIV/0!"}}]
[null,"Prioritní MD - kategorie B – poskytnutí služby se začátkem realizace od 2 do 5 dnů",1,16000,null,null,null,6.0000000000000001E-3,{"$f":"Nabidka_MIN!E46/E46*100","v":{"$error":"#DIV/0!"}},{"$f":"I46*H46","v":{"$error":"#DIV/0!"}}]
[null,"MD - kategorie C – poskytnutí služby se začátkem realizace od 6 dnů do 1 měsíce, s tím, že tato kategorie pokrývá i služby v rámci SIS, které mohou mít i delší dobu  plnění",1,12000,null,null,null,0.09,{"$f":"Nabidka_MIN!E47/E47*100","v":{"$error":"#DIV/0!"}},{"$error":"#DIV/0!"}]
[]
[null,"2.b Cena za předmět plnění - specifikované požadavky"]
[null,null,"Minimální hodnota pro hodnocení","Maximální hodnota","Nabízená hodnota "]
[null,"Analýza změn při migraci na ORACLE verze 12\nAnalýza potřebných úprav databázových procedur",1,200000,null,null,null,5.0000000000000001E-3,{"$f":"Nabidka_MIN!E51/E51*100","v":{"$error":"#DIV/0!"}},{"$f":"I51*H51","v":{"$error":"#DIV/0!"}}]
[null,"Analýza změn při migraci na ORACLE verze 12\nAnalýza potřebných úprav, resp. optimalizace aplikací",1,300000,null,null,null,7.0000000000000001E-3,{"$f":"Nabidka_MIN!E52/E52*100","v":{"$error":"#DIV/0!"}},{"$error":"#DIV/0!"}]
[null,"Požadavky na změnu - rozvoj funkcionalit dle funkčních bloků",1,3500000,null,null,null,4.3999999999999997E-2,{"$f":"Nabidka_MIN!E53/E53*100","v":{"$error":"#DIV/0!"}},{"$error":"#DIV/0!"}]
[]
[]
[]
[null,"Předmět plnění: ","Schéma hodnocení:","Váha:"]
[null,"Služby ostatní","Cena",0.04]
[]
[null,"3.a Cena za MD při požadavku na poskytnutí služby v termínech v kategorii A,B,C (cena v Kč za MD bez DPH)"]
[null,null,"Minimální hodnota pro hodnocení","Maximální hodnota","Nabízená hodnota "]
[null,"Prioritní MD NDB - kategorie A – poskytnutí služby se začátkem realizace do 1 dne",1,18000,null,null,null,2.5714285714285717E-3,{"$f":"Nabidka_MIN!E62/E62*100","v":{"$error":"#DIV/0!"}},{"$f":"I62*H62","v":{"$error":"#DIV/0!"}}]
[null,"Prioritní MD - kategorie B – poskytnutí služby se začátkem realizace od 2 do 5 dnů",1,16000,null,null,null,2.2857142857142859E-3,{"$f":"Nabidka_MIN!E63/E63*100","v":{"$error":"#DIV/0!"}},{"$f":"I63*H63","v":{"$error":"#DIV/0!"}}]
[null,"MD - kategorie C – poskytnutí služby se začátkem realizace od 6 dnů do 1 měsíce, s tím, že tato kategorie pokrývá i služby v rámci SIS, které mohou mít i delší dobu  plnění",1,12000,null,null,null,7.8571428571428577E-3,{"$f":"Nabidka_MIN!E64/E64*100","v":{"$error":"#DIV/0!"}},{"$error":"#DIV/0!"}]
[]
[null,"3.b Cena za předmět plnění - specifikované požadavky"]
[null,null,"Minimální hodnota pro hodnocení","Maximální hodnota","Nabízená hodnota "]
[null,"Zavedení nástroje pro řízení a dokumentaci poskytovaných služeb, včetně školení interních uživatelů ",1,120000,null,null,null,3.5714285714285713E-3,{"$f":"Nabidka_MIN!E68/E68*100","v":{"$error":"#DIV/0!"}},{"$f":"I68*H68","v":{"$error":"#DIV/0!"}}]
[null,"Správa a podpora nástroje pro řízení a dokumentaci poskytovaných služeb,  s garantovanou dostupností 95% na čtvrtletní bázi (cena za 1 čtvrtletí poskytovaných služeb, vč. služby Servisdesk)",1,100000,null,null,null,1.28571428571429E-2,{"$f":"Nabidka_MIN!E69/E69*100","v":{"$error":"#DIV/0!"}},{"$error":"#DIV/0!"}]
[null,"Převedení licence pro provozování nástroje pro řízení a dokumentaci poskytovaných služeb",1,400000,null,null,null,5.7142857142857143E-3,{"$f":"Nabidka_MIN!E70/E70*100","v":{"$error":"#DIV/0!"}},{"$error":"#DIV/0!"}]
[null,"Nasazení nové verze APV SIS na Testovací a produkční prostředí nad rámec služeb servisu (čtvrtletní balíčky)",1,20000,null,null,null,2.2857142857142859E-3,{"$f":"Nabidka_MIN!E71/E71*100","v":{"$error":"#DIV/0!"}},{"$error":"#DIV/0!"}]
[null,"Nasazení hotfixu APV SIS na Testovací a produkční prostředí nad rámec služeb servisu (čtvrtletní balíčky)",1,20000,null,null,null,2.8571428571428571E-3,{"$f":"Nabidka_MIN!E72/E72*100","v":{"$error":"#DIV/0!"}},{"$error":"#DIV/0!"}]
[]
[]
[]
[]
[]
[]
[null,"Předmět plnění: ","Schéma hodnocení:","Váha:"]
[null,"Služby rozvoje a servisní služby\nLhůty pro odstranění vad","Kvalitativní\nLhůty",0.04]
[]
[null,null,"Minimální hodnota pro hodnocení","Maximální hodnota","Nabízená hodnota "]
[null,"4.a Lhůta na odstranění vady plnění (zjištěné v akceptačním řízení) v hodinách za pracovní dny"]
[null,"Vada kategorie A",1,120,null,null,null,1.2E-2,{"$f":"Nabidka_MIN!E84/E84*100","v":{"$error":"#DIV/0!"}},{"$f":"I84*H84","v":{"$error":"#DIV/0!"}}]
[null,"Vada kategorie B",1,240,null,null,null,8.0000000000000002E-3,{"$f":"Nabidka_MIN!E85/E85*100","v":{"$error":"#DIV/0!"}},{"$error":"#DIV/0!"}]
[null,"Vada kategorie C",1,504,null,null,null,4.0000000000000001E-3,{"$f":"Nabidka_MIN!E86/E86*100","v":{"$error":"#DIV/0!"}},{"$error":"#DIV/0!"}]
[]
[null,"4.b Lhůta na odstranění záruční vady plnění v hodinách za pracovní dny "]
[null,"Vada kategorie A",1,120,null,null,null,8.0000000000000002E-3,{"$f":"Nabidka_MIN!E89/E89*100","v":{"$error":"#DIV/0!"}},{"$f":"I89*H89","v":{"$error":"#DIV/0!"}}]
[null,"Vada kategorie B",1,240,null,null,null,5.0000000000000001E-3,{"$f":"Nabidka_MIN!E90/E90*100","v":{"$error":"#DIV/0!"}},{"$error":"#DIV/0!"}]
[null,"Vada kategorie C",1,504,null,null,null,3.0000000000000001E-3,{"$f":"Nabidka_MIN!E91/E91*100","v":{"$error":"#DIV/0!"}},{"$error":"#DIV/0!"}]
[]
[null,"Pozn.:"]
[null,"U lhůt pro odstranění vad se uvažuje 1 den v délce 24 hodin"]
[]
[]
[null,"Předmět plnění: ","Schéma hodnocení:","Váha:"]
[null,"Služby","Kvalitativní\nPříklad",0.24]
[]
[null,"5. Zpracování příkladu poskytovaných služeb"]
[null,null,"Minimální hodnota bodů","Maximální  hodnota bodů","Počet bodů"]
[null,"Zpracování příkladu řízení poskytovaných služeb",0,5,null,null,null,0.08,{"$f":"E102/Nabidka_MIN!E102*100","v":{"$error":"#DIV/0!"}},{"$f":"I102*H102","v":{"$error":"#DIV/0!"}}]
[null,"Zpracování příkladu Navigace kurzoru v rámci PDF formulářů",0,2,null,null,null,0.16,{"$f":"E103/Nabidka_MIN!E103*100","v":{"$error":"#DIV/0!"}},{"$error":"#DIV/0!"}]
[]
[null,"Předmět plnění: ","Schéma hodnocení:","Váha:"]
[null,"Služby","Kvalitativní\nProvozní parametry",0.12]
[]
[null,"6. Provozní režim a dostupnost u skupin funkčních bloků uvedené v tabulce 1. Cena za zajištění podpory SIS s garantovanou dostupností"]
[null,null,"Minimální hodnota bodů","Maximální  hodnota bodů","Počet bodů"]
[null,"Číslo skupiny: 11,12"]
[null,"Rozšíření provozního režimu na 5x12",0,8]
[null,"Zvýšení dostupnosti na 95%",0,14]
[null,"Zvýšení dostupnosti na 97%",0,20]
[null,"Číslo skupiny: 13, 14 a 15"]
[null,"Rozšíření provozního režimu na 5x12",0,8]
[null,"Rozšíření provozního režimu na 7x16",0,22]
[null,"Rozšíření provozního režimu na 7x24",0,34]
[null,"Zvýšení dostupnosti na 95%",0,14]
[null,"Zvýšení dostupnosti na 97%",0,20]
[null,"Celkem",0,82,{"$f":"SUM(E111:E119)","v":0},null,null,0.12,{"$f":"E120/Nabidka_MIN!E120*100","v":{"$error":"#DIV/0!"}},{"$f":"I120*H120","v":{"$error":"#DIV/0!"}}]

{"sheet":"Nabidka2","index":2,"n_rows":120,"n_cols":10,"rows_kept":120,"cut":false,"hidden":false,"merged":[[109,1,109,3],[113,1,113,3],[48,1,48,3],[59,1,59,3],[87,1,87,3],[65,1,65,3],[82,1,82,3],[99,1,99,4],[107,1,107,3],[1,1,1,6],[7,1,7,6],[31,1,31,5],[35,1,35,5],[42,1,42,3]]}
[null,"Příloha č. 2A zadávací dokumentace\nZávazný formulář pro účely hodnocení část 1","Číslo nabídky:",2,"Účastník ZŘ:","BB"]
[null,"Účastník zadávacího řízení vyplňuje nebo upravuje žlutě podbarvené položky. \nU položek vyplněných zadavatelem je oprávněn změnit hodnotu pouze na vyšší - je-li uvedena mininimální hodnota, resp. na nižší - je-li uvedena maximální hodnota.",null,null,null,null,null,null,"Body za položky","Body za položky s vahou"]
[null,"Zeleně podbarvená pole doplňuje zadavatel na základě hodnocení.",null,null,null,null,null,null,"Celkem","Celkem"]
[]
[null,"Předmět plnění: ","Schéma hodnocení:","Váha:",null,null,null,null,{"$f":"SUM(I10:I120)","v":{"$error":"#DIV/0!"}},{"$f":"SUM(J10:J120)","v":{"$error":"#DIV/0!"}}]
[null,"Servisní služby","Cena",0.4]
[]
[null,"1. Cena za zajištění podpory SIS s garantovanou dostupností: (cena v Kč za čtvrtletí bez DPH)"]
["Číslo\n skupiny","Skupina funkčních bloků\nFunkční bloky jsou seskupeny a ohraničeny dvojitou čarou, vyplněná cena služeb pokrývá vždy celou skupinu funkčních bloků, resp. jejich seskupení ","Nabídka pro část veřejné zakázky ","Garantovaná dostupnost v %\n(minimální)","Lhůta na odstranění vady kat. A v hodinách (maximální)","Provozní režim\n(minimální)","Cena v Kč","Váha položky v %","Body za položku","Body za položku s vahou"]
[1,"RICHARD - Generátor tvorby projektů",1,0.9,48,"5x8",null,5.1948051948051957E-3,{"$f":"Nabidka_MIN!G10/G10*100","v":{"$error":"#DIV/0!"}},{"$f":"I10*H10","v":{"$error":"#DIV/0!"}}]
[1,"ISAAC - Konvertor popisu dat a kontrol",1,0.9,48,"5x8",null,2.0779220779220783E-2,{"$f":"Nabidka_MIN!G11/G11*100","v":{"$error":"#DIV/0!"}},{"$f":"I11*H11","v":{"$error":"#DIV/0!"}}]
[1,"ENRICO - Generátor grafické podoby výkazu",1,0.9,48,"5x8",null,2.5974025974025972E-2,{"$f":"Nabidka_MIN!G12/G12*100","v":{"$error":"#DIV/0!"}},{"$error":"#DIV/0!"}]
[2,"Požadavky",1,0.9,48,"5x8",null,8.3116883116883117E-3,{"$f":"Nabidka_MIN!G13/G13*100","v":{"$error":"#DIV/0!"}},{"$error":"#DIV/0!"}]
[2,"HSU - Harmonogram statistických úloh",1,0.9,48,"5x8",null,3.1168831168831169E-3,{"$f":"Nabidka_MIN!G14/G14*100","v":{"$error":"#DIV/0!"}},{"$error":"#DIV/0!"}]
[2,"Integrace a požadavky na HW, OMI - Obsahově metodická integrace",1,0.9,48,"5x8",null,3.1168831168831169E-3,{"$f":"Nabidka_MIN!G15/G15*100","v":{"$error":"#DIV/0!"}},{"$error":"#DIV/0!"}]
[5,"C-I/O - Centrál IN/OUT",1,0.9,48,"5x8",null,5.1948051948051957E-3,{"$f":"Nabidka_MIN!G16/G16*100","v":{"$error":"#DIV/0!"}},{"$error":"#DIV/0!"}]
[5,"SMS-KVALITA - Statistický metainformační systém, kvalita",1,0.9,48,"5x8",null,2.0779220779220783E-2,{"$f":"Nabidka_MIN!G17/G17*100","v":{"$error":"#DIV/0!"}},{"$error":"#DIV/0!"}]
[5,"SMS-VYSTUPY (včetně CASOVE RADY) - Statistický metainformační systém, výstupy a časové ředy",1,0.9,48,"5x8",null,1.5584415584415584E-2,{"$f":"Nabidka_MIN!G18/G18*100","v":{"$error":"#DIV/0!"}},{"$error":"#DIV/0!"}]
[5,"GVO - Generátor výstupních objektů",1,0.9,48,"5x8",null,1.0389610389610391E-2,{"$f":"Nabidka_MIN!G19/G19*100","v":{"$error":"#DIV/0!"}},{"$error":"#DIV/0!"}]
[8,"Registr uživatelů diseminačních produktů",1,0.9,48,"5x8",null,1.0389610389610391E-2,{"$f":"Nabidka_MIN!G20/G20*100","v":{"$error":"#DIV/0!"}},{"$error":"#DIV/0!"}]
[8,"Monitoring diseminace a evidence zpětné vazby",1,0.9,48,"5x8",null,5.1948051948051957E-3,{"$f":"Nabidka_MIN!G21/G21*100","v":{"$error":"#DIV/0!"}},{"$error":"#DIV/0!"}]
[8,"Plánování a řízení diseminace (Katalog produktů)",1,0.9,48,"5x8",null,1.0389610389610391E-2,{"$f":"Nabidka_MIN!G22/G22*100","v":{"$error":"#DIV/0!"}},{"$error":"#DIV/0!"}]
[8,"Podpora ekonomických procesů diseminace",1,0.9,48,"5x8",null,1.0389610389610391E-2,{"$f":"Nabidka_MIN!G23/G23*100","v":{"$error":"#DIV/0!"}},{"$error":"#DIV/0!"}]
[8,"Vnitřní rozhraní SIS/DISEMINACE",1,0.9,48,"5x8",null,5.1948051948051957E-3,{"$f":"Nabidka_MIN!G24/G24*100","v":{"$error":"#DIV/0!"}},{"$error":"#DIV/0!"}]
[11,"DANTE - Hromadné pořizování výkazů",1,0.92,24,"5x10",null,4.6753246753246755E-2,{"$f":"Nabidka_MIN!G25/G25*100","v":{"$error":"#DIV/0!"}},{"$error":"#DIV/0!"}]
[12,"SMS-CENTRAL, Statistický metainformační systém, řízení centrálního zpracování",1,0.92,24,"5x10",null,1.7662337662337664E-2,{"$f":"Nabidka_MIN!G26/G26*100","v":{"$error":"#DIV/0!"}},{"$error":"#DIV/0!"}]
[13,"DANTE WEB, Pořizování statistických formulářů zpravodajskými jednotkami",1,0.92,24,"5x10",null,4.6753246753246755E-2,{"$f":"Nabidka_MIN!G27/G27*100","v":{"$error":"#DIV/0!"}},{"$error":"#DIV/0!"}]
[14,"Web CZSO - Vnější rozhraní SIS/DISEMINACE",1,0.92,24,"5x10",null,7.2727272727272738E-2,{"$f":"Nabidka_MIN!G28/G28*100","v":{"$error":"#DIV/0!"}},{"$error":"#DIV/0!"}]
[14,"Záložní lokalita pro Web CZSO",1,0.92,24,"5x10",null,3.1168831168831169E-2,{"$f":"Nabidka_MIN!G29/G29*100","v":{"$error":"#DIV/0!"}},{"$error":"#DIV/0!"}]
[15,"SSO, ESB, JBOSS \n(Single-Sign-On systém jednotného přihlašování, \nEnerprise service bus)",1,0.92,24,"5x10",null,2.4935064935064935E-2,{"$f":"Nabidka_MIN!G30/G30*100","v":{"$error":"#DIV/0!"}},{"$error":"#DIV/0!"}]
[]
[null,"Součet cen za zajištění podpory SIS s garantovanou dostupností: (cena v Kč za čtvrtletí bez DPH) ",null,null,null,null,{"$f":"SUM(G10:G30)","v":0}]
[]
[]
[]
[null,"Součet cen za zajištění podpory SIS s garantovanou dostupností: (cena v Kč za čtvrtletí bez DPH) součet cen z každého řádku za skupinou funkčních bloků přepočtenou (vynásobenou) na období plnění 4 let, tj. 16 čtvrtletí.\n\nPro tento součet cen stanovuje zadavatel maximálně přípustnou hodnotu, která pro \nčást 1 činí 19 mil. Kč\ns tím, že její překročení je důvodem pro vyřazení nabídky. ",null,null,null,null,{"$f":"G32*16","v":0}]
[]
[]
[]
[null,"Předmět plnění: ","Schéma hodnocení:","Váha:"]
[null,"Služby rozvoje","Cena",0.16]
[]
[null,"2.a Cena za MD při obecném požadavku rozvoj na poskytnutí MD v termínech v kategorii A,B,C (cena v Kč za MD bez DPH)"]
[null,null,"Minimální hodnota pro hodnocení","Maximální hodnota","Nabízená hodnota "]
[null,"Prioritní MD NDB - kategorie A – poskytnutí služby se začátkem realizace do 1 dne",1,18000,null,null,null,8.0000000000000002E-3,{"$f":"Nabidka_MIN!E45/E45*100","v":{"$error":"#DIV/0!"}},{"$f":"I45*H45","v":{"$error":"#DIV/0!"}}]
[null,"Prioritní MD - kategorie B – poskytnutí služby se začátkem realizace od 2 do 5 dnů",1,16000,null,null,null,6.0000000000000001E-3,{"$f":"Nabidka_MIN!E46/E46*100","v":{"$error":"#DIV/0!"}},{"$error":"#DIV/0!"}]
[null,"MD - kategorie C – poskytnutí služby se začátkem realizace od 6 dnů do 1 měsíce, s tím, že tato kategorie pokrývá i služby v rámci SIS, které mohou mít i delší dobu  plnění",1,12000,null,null,null,0.09,{"$f":"Nabidka_MIN!E47/E47*100","v":{"$error":"#DIV/0!"}},{"$error":"#DIV/0!"}]
[]
[null,"2.b Cena za předmět plnění - specifikované požadavky"]
[null,null,"Minimální hodnota pro hodnocení","Maximální hodnota","Nabízená hodnota "]
[null,"Analýza změn při migraci na ORACLE verze 12\nAnalýza potřebných úprav databázových procedur",1,200000,null,null,null,5.0000000000000001E-3,{"$f":"Nabidka_MIN!E51/E51*100","v":{"$error":"#DIV/0!"}},{"$f":"I51*H51","v":{"$error":"#DIV/0!"}}]
[null,"Analýza změn při migraci na ORACLE verze 12\nAnalýza potřebných úprav, resp. optimalizace aplikací",1,300000,null,null,null,7.0000000000000001E-3,{"$f":"Nabidka_MIN!E52/E52*100","v":{"$error":"#DIV/0!"}},{"$error":"#DIV/0!"}]
[null,"Požadavky na změnu - rozvoj funkcionalit dle funkčních bloků",1,3500000,null,null,null,4.3999999999999997E-2,{"$f":"Nabidka_MIN!E53/E53*100","v":{"$error":"#DIV/0!"}},{"$error":"#DIV/0!"}]
[]
[]
[]
[null,"Předmět plnění: ","Schéma hodnocení:","Váha:"]
[null,"Služby ostatní","Cena",0.04]
[]
[null,"3.a Cena za MD při požadavku na poskytnutí služby v termínech v kategorii A,B,C (cena v Kč za MD bez DPH)"]
[null,null,"Minimální hodnota pro hodnocení","Maximální hodnota","Nabízená hodnota "]
[null,"Prioritní MD NDB - kategorie A – poskytnutí služby se začátkem realizace do 1 dne",1,18000,null,null,null,2.5714285714285717E-3,{"$f":"Nabidka_MIN!E62/E62*100","v":{"$error":"#DIV/0!"}},{"$f":"I62*H62","v":{"$error":"#DIV/0!"}}]
[null,"Prioritní MD - kategorie B – poskytnutí služby se začátkem realizace od 2 do 5 dnů",1,16000,null,null,null,2.2857142857142859E-3,{"$f":"Nabidka_MIN!E63/E63*100","v":{"$error":"#DIV/0!"}},{"$error":"#DIV/0!"}]
[null,"MD - kategorie C – poskytnutí služby se začátkem realizace od 6 dnů do 1 měsíce, s tím, že tato kategorie pokrývá i služby v rámci SIS, které mohou mít i delší dobu  plnění",1,12000,null,null,null,7.8571428571428577E-3,{"$f":"Nabidka_MIN!E64/E64*100","v":{"$error":"#DIV/0!"}},{"$error":"#DIV/0!"}]
[]
[null,"3.b Cena za předmět plnění - specifikované požadavky"]
[null,null,"Minimální hodnota pro hodnocení","Maximální hodnota","Nabízená hodnota "]
[null,"Zavedení nástroje pro řízení a dokumentaci poskytovaných služeb, včetně školení interních uživatelů ",1,120000,null,null,null,3.5714285714285713E-3,{"$f":"Nabidka_MIN!E68/E68*100","v":{"$error":"#DIV/0!"}},{"$f":"I68*H68","v":{"$error":"#DIV/0!"}}]
[null,"Správa a podpora nástroje pro řízení a dokumentaci poskytovaných služeb,  s garantovanou dostupností 95% na čtvrtletní bázi (cena za 1 čtvrtletí poskytovaných služeb, vč. služby Servisdesk)",1,100000,null,null,null,1.28571428571429E-2,{"$f":"Nabidka_MIN!E69/E69*100","v":{"$error":"#DIV/0!"}},{"$error":"#DIV/0!"}]
[null,"Převedení licence pro provozování nástroje pro řízení a dokumentaci poskytovaných služeb",1,400000,null,null,null,5.7142857142857143E-3,{"$f":"Nabidka_MIN!E70/E70*100","v":{"$error":"#DIV/0!"}},{"$error":"#DIV/0!"}]
[null,"Nasazení nové verze APV SIS na Testovací a produkční prostředí nad rámec služeb servisu (čtvrtletní balíčky)",1,20000,null,null,null,2.2857142857142859E-3,{"$f":"Nabidka_MIN!E71/E71*100","v":{"$error":"#DIV/0!"}},{"$error":"#DIV/0!"}]
[null,"Nasazení hotfixu APV SIS na Testovací a produkční prostředí nad rámec služeb servisu (čtvrtletní balíčky)",1,20000,null,null,null,2.8571428571428571E-3,{"$f":"Nabidka_MIN!E72/E72*100","v":{"$error":"#DIV/0!"}},{"$error":"#DIV/0!"}]
[]
[]
[]
[]
[]
[]
[null,"Předmět plnění: ","Schéma hodnocení:","Váha:"]
[null,"Služby rozvoje a servisní služby\nLhůty pro odstranění vad","Kvalitativní\nLhůty",0.04]
[]
[null,null,"Minimální hodnota pro hodnocení","Maximální hodnota","Nabízená hodnota "]
[null,"4.a Lhůta na odstranění vady plnění (zjištěné v akceptačním řízení) v hodinách za pracovní dny"]
[null,"Vada kategorie A",1,120,null,null,null,1.2E-2,{"$f":"Nabidka_MIN!E84/E84*100","v":{"$error":"#DIV/0!"}},{"$f":"I84*H84","v":{"$error":"#DIV/0!"}}]
[null,"Vada kategorie B",1,240,null,null,null,8.0000000000000002E-3,{"$f":"Nabidka_MIN!E85/E85*100","v":{"$error":"#DIV/0!"}},{"$error":"#DIV/0!"}]
[null,"Vada kategorie C",1,504,null,null,null,4.0000000000000001E-3,{"$f":"Nabidka_MIN!E86/E86*100","v":{"$error":"#DIV/0!"}},{"$error":"#DIV/0!"}]
[]
[null,"4.b Lhůta na odstranění záruční vady plnění v hodinách za pracovní dny "]
[null,"Vada kategorie A",1,120,null,null,null,8.0000000000000002E-3,{"$f":"Nabidka_MIN!E89/E89*100","v":{"$error":"#DIV/0!"}},{"$f":"I89*H89","v":{"$error":"#DIV/0!"}}]
[null,"Vada kategorie B",1,240,null,null,null,5.0000000000000001E-3,{"$f":"Nabidka_MIN!E90/E90*100","v":{"$error":"#DIV/0!"}},{"$error":"#DIV/0!"}]
[null,"Vada kategorie C",1,504,null,null,null,3.0000000000000001E-3,{"$f":"Nabidka_MIN!E91/E91*100","v":{"$error":"#DIV/0!"}},{"$error":"#DIV/0!"}]
[]
[null,"Pozn.:"]
[null,"U lhůt pro odstranění vad se uvažuje 1 den v délce 24 hodin"]
[]
[]
[null,"Předmět plnění: ","Schéma hodnocení:","Váha:"]
[null,"Služby","Kvalitativní\nPříklad",0.24]
[]
[null,"5. Zpracování příkladu poskytovaných služeb"]
[null,null,"Minimální hodnota bodů","Maximální  hodnota bodů","Počet bodů"]
[null,"Zpracování příkladu řízení poskytovaných služeb",0,5,null,null,null,0.08,{"$f":"E102/Nabidka_MIN!E102*100","v":{"$error":"#DIV/0!"}},{"$f":"I102*H102","v":{"$error":"#DIV/0!"}}]
[null,"Zpracování příkladu Navigace kurzoru v rámci PDF formulářů",0,2,null,null,null,0.16,{"$f":"E103/Nabidka_MIN!E103*100","v":{"$error":"#DIV/0!"}},{"$error":"#DIV/0!"}]
[]
[null,"Předmět plnění: ","Schéma hodnocení:","Váha:"]
[null,"Služby","Kvalitativní\nProvozní parametry",0.12]
[]
[null,"6. Provozní režim a dostupnost u skupin funkčních bloků uvedené v tabulce 1. Cena za zajištění podpory SIS s garantovanou dostupností"]
[null,null,"Minimální hodnota bodů","Maximální  hodnota bodů","Počet bodů"]
[null,"Číslo skupiny: 11,12"]
[null,"Rozšíření provozního režimu na 5x12",0,8]
[null,"Zvýšení dostupnosti na 95%",0,14]
[null,"Zvýšení dostupnosti na 97%",0,20]
[null,"Číslo skupiny: 13, 14 a 15"]
[null,"Rozšíření provozního režimu na 5x12",0,8]
[null,"Rozšíření provozního režimu na 7x16",0,22]
[null,"Rozšíření provozního režimu na 7x24",0,34]
[null,"Zvýšení dostupnosti na 95%",0,14]
[null,"Zvýšení dostupnosti na 97%",0,20]
[null,"Celkem",0,82,{"$f":"SUM(E111:E119)","v":0},null,null,0.12,{"$f":"E120/Nabidka_MIN!E120*100","v":{"$error":"#DIV/0!"}},{"$f":"I120*H120","v":{"$error":"#DIV/0!"}}]

{"sheet":"Nabidka3","index":3,"n_rows":120,"n_cols":10,"rows_kept":120,"cut":false,"hidden":false,"merged":[[109,1,109,3],[113,1,113,3],[48,1,48,3],[59,1,59,3],[87,1,87,3],[65,1,65,3],[82,1,82,3],[99,1,99,4],[107,1,107,3],[1,1,1,6],[7,1,7,6],[31,1,31,5],[35,1,35,5],[42,1,42,3]]}
[null,"Příloha č. 2A zadávací dokumentace\nZávazný formulář pro účely hodnocení část 1","Číslo nabídky:",3,"Účastník ZŘ:","CC"]
[null,"Účastník zadávacího řízení vyplňuje nebo upravuje žlutě podbarvené položky. \nU položek vyplněných zadavatelem je oprávněn změnit hodnotu pouze na vyšší - je-li uvedena mininimální hodnota, resp. na nižší - je-li uvedena maximální hodnota.",null,null,null,null,null,null,"Body za položky","Body za položky s vahou"]
[null,"Zeleně podbarvená pole doplňuje zadavatel na základě hodnocení.",null,null,null,null,null,null,"Celkem","Celkem"]
[]
[null,"Předmět plnění: ","Schéma hodnocení:","Váha:",null,null,null,null,{"$f":"SUM(I10:I120)","v":{"$error":"#DIV/0!"}},{"$f":"SUM(J10:J120)","v":{"$error":"#DIV/0!"}}]
[null,"Servisní služby","Cena",0.4]
[]
[null,"1. Cena za zajištění podpory SIS s garantovanou dostupností: (cena v Kč za čtvrtletí bez DPH)"]
["Číslo\n skupiny","Skupina funkčních bloků\nFunkční bloky jsou seskupeny a ohraničeny dvojitou čarou, vyplněná cena služeb pokrývá vždy celou skupinu funkčních bloků, resp. jejich seskupení ","Nabídka pro část veřejné zakázky ","Garantovaná dostupnost v %\n(minimální)","Lhůta na odstranění vady kat. A v hodinách (maximální)","Provozní režim\n(minimální)","Cena v Kč","Váha položky v %","Body za položku","Body za položku s vahou"]
[1,"RICHARD - Generátor tvorby projektů",1,0.9,48,"5x8",null,5.1948051948051957E-3,{"$f":"Nabidka_MIN!G10/G10*100","v":{"$error":"#DIV/0!"}},{"$f":"I10*H10","v":{"$error":"#DIV/0!"}}]
[1,"ISAAC - Konvertor popisu dat a kontrol",1,0.9,48,"5x8",null,2.0779220779220783E-2,{"$f":"Nabidka_MIN!G11/G11*100","v":{"$error":"#DIV/0!"}},{"$f":"I11*H11","v":{"$error":"#DIV/0!"}}]
[1,"ENRICO - Generátor grafické podoby výkazu",1,0.9,48,"5x8",null,2.5974025974025972E-2,{"$f":"Nabidka_MIN!G12/G12*100","v":{"$error":"#DIV/0!"}},{"$error":"#DIV/0!"}]
[2,"Požadavky",1,0.9,48,"5x8",null,8.3116883116883117E-3,{"$f":"Nabidka_MIN!G13/G13*100","v":{"$error":"#DIV/0!"}},{"$error":"#DIV/0!"}]
[2,"HSU - Harmonogram statistických úloh",1,0.9,48,"5x8",null,3.1168831168831169E-3,{"$f":"Nabidka_MIN!G14/G14*100","v":{"$error":"#DIV/0!"}},{"$error":"#DIV/0!"}]
[2,"Integrace a požadavky na HW, OMI - Obsahově metodická integrace",1,0.9,48,"5x8",null,3.1168831168831169E-3,{"$f":"Nabidka_MIN!G15/G15*100","v":{"$error":"#DIV/0!"}},{"$error":"#DIV/0!"}]
[5,"C-I/O - Centrál IN/OUT",1,0.9,48,"5x8",null,5.1948051948051957E-3,{"$f":"Nabidka_MIN!G16/G16*100","v":{"$error":"#DIV/0!"}},{"$error":"#DIV/0!"}]
[5,"SMS-KVALITA - Statistický metainformační systém, kvalita",1,0.9,48,"5x8",null,2.0779220779220783E-2,{"$f":"Nabidka_MIN!G17/G17*100","v":{"$error":"#DIV/0!"}},{"$error":"#DIV/0!"}]
[5,"SMS-VYSTUPY (včetně CASOVE RADY) - Statistický metainformační systém, výstupy a časové ředy",1,0.9,48,"5x8",null,1.5584415584415584E-2,{"$f":"Nabidka_MIN!G18/G18*100","v":{"$error":"#DIV/0!"}},{"$error":"#DIV/0!"}]
[5,"GVO - Generátor výstupních objektů",1,0.9,48,"5x8",null,1.0389610389610391E-2,{"$f":"Nabidka_MIN!G19/G19*100","v":{"$error":"#DIV/0!"}},{"$error":"#DIV/0!"}]
[8,"Registr uživatelů diseminačních produktů",1,0.9,48,"5x8",null,1.0389610389610391E-2,{"$f":"Nabidka_MIN!G20/G20*100","v":{"$error":"#DIV/0!"}},{"$error":"#DIV/0!"}]
[8,"Monitoring diseminace a evidence zpětné vazby",1,0.9,48,"5x8",null,5.1948051948051957E-3,{"$f":"Nabidka_MIN!G21/G21*100","v":{"$error":"#DIV/0!"}},{"$error":"#DIV/0!"}]
[8,"Plánování a řízení diseminace (Katalog produktů)",1,0.9,48,"5x8",null,1.0389610389610391E-2,{"$f":"Nabidka_MIN!G22/G22*100","v":{"$error":"#DIV/0!"}},{"$error":"#DIV/0!"}]
[8,"Podpora ekonomických procesů diseminace",1,0.9,48,"5x8",null,1.0389610389610391E-2,{"$f":"Nabidka_MIN!G23/G23*100","v":{"$error":"#DIV/0!"}},{"$error":"#DIV/0!"}]
[8,"Vnitřní rozhraní SIS/DISEMINACE",1,0.9,48,"5x8",null,5.1948051948051957E-3,{"$f":"Nabidka_MIN!G24/G24*100","v":{"$error":"#DIV/0!"}},{"$error":"#DIV/0!"}]
[11,"DANTE - Hromadné pořizování výkazů",1,0.92,24,"5x10",null,4.6753246753246755E-2,{"$f":"Nabidka_MIN!G25/G25*100","v":{"$error":"#DIV/0!"}},{"$error":"#DIV/0!"}]
[12,"SMS-CENTRAL, Statistický metainformační systém, řízení centrálního zpracování",1,0.92,24,"5x10",null,1.7662337662337664E-2,{"$f":"Nabidka_MIN!G26/G26*100","v":{"$error":"#DIV/0!"}},{"$error":"#DIV/0!"}]
[13,"DANTE WEB, Pořizování statistických formulářů zpravodajskými jednotkami",1,0.92,24,"5x10",null,4.6753246753246755E-2,{"$f":"Nabidka_MIN!G27/G27*100","v":{"$error":"#DIV/0!"}},{"$error":"#DIV/0!"}]
[14,"Web CZSO - Vnější rozhraní SIS/DISEMINACE",1,0.92,24,"5x10",null,7.2727272727272738E-2,{"$f":"Nabidka_MIN!G28/G28*100","v":{"$error":"#DIV/0!"}},{"$error":"#DIV/0!"}]
[14,"Záložní lokalita pro Web CZSO",1,0.92,24,"5x10",null,3.1168831168831169E-2,{"$f":"Nabidka_MIN!G29/G29*100","v":{"$error":"#DIV/0!"}},{"$error":"#DIV/0!"}]
[15,"SSO, ESB, JBOSS \n(Single-Sign-On systém jednotného přihlašování, \nEnerprise service bus)",1,0.92,24,"5x10",null,2.4935064935064935E-2,{"$f":"Nabidka_MIN!G30/G30*100","v":{"$error":"#DIV/0!"}},{"$error":"#DIV/0!"}]
[]
[null,"Součet cen za zajištění podpory SIS s garantovanou dostupností: (cena v Kč za čtvrtletí bez DPH) ",null,null,null,null,{"$f":"SUM(G10:G30)","v":0}]
[]
[]
[]
[null,"Součet cen za zajištění podpory SIS s garantovanou dostupností: (cena v Kč za čtvrtletí bez DPH) součet cen z každého řádku za skupinou funkčních bloků přepočtenou (vynásobenou) na období plnění 4 let, tj. 16 čtvrtletí.\n\nPro tento součet cen stanovuje zadavatel maximálně přípustnou hodnotu, která pro \nčást 1 činí 19 mil. Kč\ns tím, že její překročení je důvodem pro vyřazení nabídky. ",null,null,null,null,{"$f":"G32*16","v":0}]
[]
[]
[]
[null,"Předmět plnění: ","Schéma hodnocení:","Váha:"]
[null,"Služby rozvoje","Cena",0.16]
[]
[null,"2.a Cena za MD při obecném požadavku rozvoj na poskytnutí MD v termínech v kategorii A,B,C (cena v Kč za MD bez DPH)"]
[null,null,"Minimální hodnota pro hodnocení","Maximální hodnota","Nabízená hodnota "]
[null,"Prioritní MD NDB - kategorie A – poskytnutí služby se začátkem realizace do 1 dne",1,18000,null,null,null,8.0000000000000002E-3,{"$f":"Nabidka_MIN!E45/E45*100","v":{"$error":"#DIV/0!"}},{"$f":"I45*H45","v":{"$error":"#DIV/0!"}}]
[null,"Prioritní MD - kategorie B – poskytnutí služby se začátkem realizace od 2 do 5 dnů",1,16000,null,null,null,6.0000000000000001E-3,{"$f":"Nabidka_MIN!E46/E46*100","v":{"$error":"#DIV/0!"}},{"$error":"#DIV/0!"}]
[null,"MD - kategorie C – poskytnutí služby se začátkem realizace od 6 dnů do 1 měsíce, s tím, že tato kategorie pokrývá i služby v rámci SIS, které mohou mít i delší dobu  plnění",1,12000,null,null,null,0.09,{"$f":"Nabidka_MIN!E47/E47*100","v":{"$error":"#DIV/0!"}},{"$error":"#DIV/0!"}]
[]
[null,"2.b Cena za předmět plnění - specifikované požadavky"]
[null,null,"Minimální hodnota pro hodnocení","Maximální hodnota","Nabízená hodnota "]
[null,"Analýza změn při migraci na ORACLE verze 12\nAnalýza potřebných úprav databázových procedur",1,200000,null,null,null,5.0000000000000001E-3,{"$f":"Nabidka_MIN!E51/E51*100","v":{"$error":"#DIV/0!"}},{"$f":"I51*H51","v":{"$error":"#DIV/0!"}}]
[null,"Analýza změn při migraci na ORACLE verze 12\nAnalýza potřebných úprav, resp. optimalizace aplikací",1,300000,null,null,null,7.0000000000000001E-3,{"$f":"Nabidka_MIN!E52/E52*100","v":{"$error":"#DIV/0!"}},{"$error":"#DIV/0!"}]
[null,"Požadavky na změnu - rozvoj funkcionalit dle funkčních bloků",1,3500000,null,null,null,4.3999999999999997E-2,{"$f":"Nabidka_MIN!E53/E53*100","v":{"$error":"#DIV/0!"}},{"$error":"#DIV/0!"}]
[]
[]
[]
[null,"Předmět plnění: ","Schéma hodnocení:","Váha:"]
[null,"Služby ostatní","Cena",0.04]
[]
[null,"3.a Cena za MD při požadavku na poskytnutí služby v termínech v kategorii A,B,C (cena v Kč za MD bez DPH)"]
[null,null,"Minimální hodnota pro hodnocení","Maximální hodnota","Nabízená hodnota "]
[null,"Prioritní MD NDB - kategorie A – poskytnutí služby se začátkem realizace do 1 dne",1,18000,null,null,null,2.5714285714285717E-3,{"$f":"Nabidka_MIN!E62/E62*100","v":{"$error":"#DIV/0!"}},{"$f":"I62*H62","v":{"$error":"#DIV/0!"}}]
[null,"Prioritní MD - kategorie B – poskytnutí služby se začátkem realizace od 2 do 5 dnů",1,16000,null,null,null,2.2857142857142859E-3,{"$f":"Nabidka_MIN!E63/E63*100","v":{"$error":"#DIV/0!"}},{"$error":"#DIV/0!"}]
[null,"MD - kategorie C – poskytnutí služby se začátkem realizace od 6 dnů do 1 měsíce, s tím, že tato kategorie pokrývá i služby v rámci SIS, které mohou mít i delší dobu  plnění",1,12000,null,null,null,7.8571428571428577E-3,{"$f":"Nabidka_MIN!E64/E64*100","v":{"$error":"#DIV/0!"}},{"$error":"#DIV/0!"}]
[]
[null,"3.b Cena za předmět plnění - specifikované požadavky"]
[null,null,"Minimální hodnota pro hodnocení","Maximální hodnota","Nabízená hodnota "]
[null,"Zavedení nástroje pro řízení a dokumentaci poskytovaných služeb, včetně školení interních uživatelů ",1,120000,null,null,null,3.5714285714285713E-3,{"$f":"Nabidka_MIN!E68/E68*100","v":{"$error":"#DIV/0!"}},{"$f":"I68*H68","v":{"$error":"#DIV/0!"}}]
[null,"Správa a podpora nástroje pro řízení a dokumentaci poskytovaných služeb,  s garantovanou dostupností 95% na čtvrtletní bázi (cena za 1 čtvrtletí poskytovaných služeb, vč. služby Servisdesk)",1,100000,null,null,null,1.28571428571429E-2,{"$f":"Nabidka_MIN!E69/E69*100","v":{"$error":"#DIV/0!"}},{"$error":"#DIV/0!"}]
[null,"Převedení licence pro provozování nástroje pro řízení a dokumentaci poskytovaných služeb",1,400000,null,null,null,5.7142857142857143E-3,{"$f":"Nabidka_MIN!E70/E70*100","v":{"$error":"#DIV/0!"}},{"$error":"#DIV/0!"}]
[null,"Nasazení nové verze APV SIS na Testovací a produkční prostředí nad rámec služeb servisu (čtvrtletní balíčky)",1,20000,null,null,null,2.2857142857142859E-3,{"$f":"Nabidka_MIN!E71/E71*100","v":{"$error":"#DIV/0!"}},{"$error":"#DIV/0!"}]
[null,"Nasazení hotfixu APV SIS na Testovací a produkční prostředí nad rámec služeb servisu (čtvrtletní balíčky)",1,20000,null,null,null,2.8571428571428571E-3,{"$f":"Nabidka_MIN!E72/E72*100","v":{"$error":"#DIV/0!"}},{"$error":"#DIV/0!"}]
[]
[]
[]
[]
[]
[]
[null,"Předmět plnění: ","Schéma hodnocení:","Váha:"]
[null,"Služby rozvoje a servisní služby\nLhůty pro odstranění vad","Kvalitativní\nLhůty",0.04]
[]
[null,null,"Minimální hodnota pro hodnocení","Maximální hodnota","Nabízená hodnota "]
[null,"4.a Lhůta na odstranění vady plnění (zjištěné v akceptačním řízení) v hodinách za pracovní dny"]
[null,"Vada kategorie A",1,120,null,null,null,1.2E-2,{"$f":"Nabidka_MIN!E84/E84*100","v":{"$error":"#DIV/0!"}},{"$f":"I84*H84","v":{"$error":"#DIV/0!"}}]
[null,"Vada kategorie B",1,240,null,null,null,8.0000000000000002E-3,{"$f":"Nabidka_MIN!E85/E85*100","v":{"$error":"#DIV/0!"}},{"$error":"#DIV/0!"}]
[null,"Vada kategorie C",1,504,null,null,null,4.0000000000000001E-3,{"$f":"Nabidka_MIN!E86/E86*100","v":{"$error":"#DIV/0!"}},{"$error":"#DIV/0!"}]
[]
[null,"4.b Lhůta na odstranění záruční vady plnění v hodinách za pracovní dny "]
[null,"Vada kategorie A",1,120,null,null,null,8.0000000000000002E-3,{"$f":"Nabidka_MIN!E89/E89*100","v":{"$error":"#DIV/0!"}},{"$f":"I89*H89","v":{"$error":"#DIV/0!"}}]
[null,"Vada kategorie B",1,240,null,null,null,5.0000000000000001E-3,{"$f":"Nabidka_MIN!E90/E90*100","v":{"$error":"#DIV/0!"}},{"$error":"#DIV/0!"}]
[null,"Vada kategorie C",1,504,null,null,null,3.0000000000000001E-3,{"$f":"Nabidka_MIN!E91/E91*100","v":{"$error":"#DIV/0!"}},{"$error":"#DIV/0!"}]
[]
[null,"Pozn.:"]
[null,"U lhůt pro odstranění vad se uvažuje 1 den v délce 24 hodin"]
[]
[]
[null,"Předmět plnění: ","Schéma hodnocení:","Váha:"]
[null,"Služby","Kvalitativní\nPříklad",0.24]
[]
[null,"5. Zpracování příkladu poskytovaných služeb"]
[null,null,"Minimální hodnota bodů","Maximální  hodnota bodů","Počet bodů"]
[null,"Zpracování příkladu řízení poskytovaných služeb",0,5,null,null,null,0.08,{"$f":"E102/Nabidka_MIN!E102*100","v":{"$error":"#DIV/0!"}},{"$f":"I102*H102","v":{"$error":"#DIV/0!"}}]
[null,"Zpracování příkladu Navigace kurzoru v rámci PDF formulářů",0,2,null,null,null,0.16,{"$f":"E103/Nabidka_MIN!E103*100","v":{"$error":"#DIV/0!"}},{"$error":"#DIV/0!"}]
[]
[null,"Předmět plnění: ","Schéma hodnocení:","Váha:"]
[null,"Služby","Kvalitativní\nProvozní parametry",0.12]
[]
[null,"6. Provozní režim a dostupnost u skupin funkčních bloků uvedené v tabulce 1. Cena za zajištění podpory SIS s garantovanou dostupností"]
[null,null,"Minimální hodnota bodů","Maximální  hodnota bodů","Počet bodů"]
[null,"Číslo skupiny: 11,12"]
[null,"Rozšíření provozního režimu na 5x12",0,8]
[null,"Zvýšení dostupnosti na 95%",0,14]
[null,"Zvýšení dostupnosti na 97%",0,20]
[null,"Číslo skupiny: 13, 14 a 15"]
[null,"Rozšíření provozního režimu na 5x12",0,8]
[null,"Rozšíření provozního režimu na 7x16",0,22]
[null,"Rozšíření provozního režimu na 7x24",0,34]
[null,"Zvýšení dostupnosti na 95%",0,14]
[null,"Zvýšení dostupnosti na 97%",0,20]
[null,"Celkem",0,82,{"$f":"SUM(E111:E119)","v":0},null,null,0.12,{"$f":"E120/Nabidka_MIN!E120*100","v":{"$error":"#DIV/0!"}},{"$f":"I120*H120","v":{"$error":"#DIV/0!"}}]

{"sheet":"Nabidka4","index":4,"n_rows":120,"n_cols":10,"rows_kept":120,"cut":false,"hidden":false,"merged":[[109,1,109,3],[113,1,113,3],[48,1,48,3],[59,1,59,3],[87,1,87,3],[65,1,65,3],[82,1,82,3],[99,1,99,4],[107,1,107,3],[1,1,1,6],[7,1,7,6],[31,1,31,5],[35,1,35,5],[42,1,42,3]]}
[null,"Příloha č. 2A zadávací dokumentace\nZávazný formulář pro účely hodnocení část 1","Číslo nabídky:",4,"Účastník ZŘ:","DD"]
[null,"Účastník zadávacího řízení vyplňuje nebo upravuje žlutě podbarvené položky. \nU položek vyplněných zadavatelem je oprávněn změnit hodnotu pouze na vyšší - je-li uvedena mininimální hodnota, resp. na nižší - je-li uvedena maximální hodnota.",null,null,null,null,null,null,"Body za položky","Body za položky s vahou"]
[null,"Zeleně podbarvená pole doplňuje zadavatel na základě hodnocení.",null,null,null,null,null,null,"Celkem","Celkem"]
[]
[null,"Předmět plnění: ","Schéma hodnocení:","Váha:",null,null,null,null,{"$f":"SUM(I10:I120)","v":{"$error":"#DIV/0!"}},{"$f":"SUM(J10:J120)","v":{"$error":"#DIV/0!"}}]
[null,"Servisní služby","Cena",0.4]
[]
[null,"1. Cena za zajištění podpory SIS s garantovanou dostupností: (cena v Kč za čtvrtletí bez DPH)"]
["Číslo\n skupiny","Skupina funkčních bloků\nFunkční bloky jsou seskupeny a ohraničeny dvojitou čarou, vyplněná cena služeb pokrývá vždy celou skupinu funkčních bloků, resp. jejich seskupení ","Nabídka pro část veřejné zakázky ","Garantovaná dostupnost v %\n(minimální)","Lhůta na odstranění vady kat. A v hodinách (maximální)","Provozní režim\n(minimální)","Cena v Kč","Váha položky v %","Body za položku","Body za položku s vahou"]
[1,"RICHARD - Generátor tvorby projektů",1,0.9,48,"5x8",null,5.1948051948051957E-3,{"$f":"Nabidka_MIN!G10/G10*100","v":{"$error":"#DIV/0!"}},{"$f":"I10*H10","v":{"$error":"#DIV/0!"}}]
[1,"ISAAC - Konvertor popisu dat a kontrol",1,0.9,48,"5x8",null,2.0779220779220783E-2,{"$f":"Nabidka_MIN!G11/G11*100","v":{"$error":"#DIV/0!"}},{"$f":"I11*H11","v":{"$error":"#DIV/0!"}}]
[1,"ENRICO - Generátor grafické podoby výkazu",1,0.9,48,"5x8",null,2.5974025974025972E-2,{"$f":"Nabidka_MIN!G12/G12*100","v":{"$error":"#DIV/0!"}},{"$error":"#DIV/0!"}]
[2,"Požadavky",1,0.9,48,"5x8",null,8.3116883116883117E-3,{"$f":"Nabidka_MIN!G13/G13*100","v":{"$error":"#DIV/0!"}},{"$error":"#DIV/0!"}]
[2,"HSU - Harmonogram statistických úloh",1,0.9,48,"5x8",null,3.1168831168831169E-3,{"$f":"Nabidka_MIN!G14/G14*100","v":{"$error":"#DIV/0!"}},{"$error":"#DIV/0!"}]
[2,"Integrace a požadavky na HW, OMI - Obsahově metodická integrace",1,0.9,48,"5x8",null,3.1168831168831169E-3,{"$f":"Nabidka_MIN!G15/G15*100","v":{"$error":"#DIV/0!"}},{"$error":"#DIV/0!"}]
[5,"C-I/O - Centrál IN/OUT",1,0.9,48,"5x8",null,5.1948051948051957E-3,{"$f":"Nabidka_MIN!G16/G16*100","v":{"$error":"#DIV/0!"}},{"$error":"#DIV/0!"}]
[5,"SMS-KVALITA - Statistický metainformační systém, kvalita",1,0.9,48,"5x8",null,2.0779220779220783E-2,{"$f":"Nabidka_MIN!G17/G17*100","v":{"$error":"#DIV/0!"}},{"$error":"#DIV/0!"}]
[5,"SMS-VYSTUPY (včetně CASOVE RADY) - Statistický metainformační systém, výstupy a časové ředy",1,0.9,48,"5x8",null,1.5584415584415584E-2,{"$f":"Nabidka_MIN!G18/G18*100","v":{"$error":"#DIV/0!"}},{"$error":"#DIV/0!"}]
[5,"GVO - Generátor výstupních objektů",1,0.9,48,"5x8",null,1.0389610389610391E-2,{"$f":"Nabidka_MIN!G19/G19*100","v":{"$error":"#DIV/0!"}},{"$error":"#DIV/0!"}]
[8,"Registr uživatelů diseminačních produktů",1,0.9,48,"5x8",null,1.0389610389610391E-2,{"$f":"Nabidka_MIN!G20/G20*100","v":{"$error":"#DIV/0!"}},{"$error":"#DIV/0!"}]
[8,"Monitoring diseminace a evidence zpětné vazby",1,0.9,48,"5x8",null,5.1948051948051957E-3,{"$f":"Nabidka_MIN!G21/G21*100","v":{"$error":"#DIV/0!"}},{"$error":"#DIV/0!"}]
[8,"Plánování a řízení diseminace (Katalog produktů)",1,0.9,48,"5x8",null,1.0389610389610391E-2,{"$f":"Nabidka_MIN!G22/G22*100","v":{"$error":"#DIV/0!"}},{"$error":"#DIV/0!"}]
[8,"Podpora ekonomických procesů diseminace",1,0.9,48,"5x8",null,1.0389610389610391E-2,{"$f":"Nabidka_MIN!G23/G23*100","v":{"$error":"#DIV/0!"}},{"$error":"#DIV/0!"}]
[8,"Vnitřní rozhraní SIS/DISEMINACE",1,0.9,48,"5x8",null,5.1948051948051957E-3,{"$f":"Nabidka_MIN!G24/G24*100","v":{"$error":"#DIV/0!"}},{"$error":"#DIV/0!"}]
[11,"DANTE - Hromadné pořizování výkazů",1,0.92,24,"5x10",null,4.6753246753246755E-2,{"$f":"Nabidka_MIN!G25/G25*100","v":{"$error":"#DIV/0!"}},{"$error":"#DIV/0!"}]
[12,"SMS-CENTRAL, Statistický metainformační systém, řízení centrálního zpracování",1,0.92,24,"5x10",null,1.7662337662337664E-2,{"$f":"Nabidka_MIN!G26/G26*100","v":{"$error":"#DIV/0!"}},{"$error":"#DIV/0!"}]
[13,"DANTE WEB, Pořizování statistických formulářů zpravodajskými jednotkami",1,0.92,24,"5x10",null,4.6753246753246755E-2,{"$f":"Nabidka_MIN!G27/G27*100","v":{"$error":"#DIV/0!"}},{"$error":"#DIV/0!"}]
[14,"Web CZSO - Vnější rozhraní SIS/DISEMINACE",1,0.92,24,"5x10",null,7.2727272727272738E-2,{"$f":"Nabidka_MIN!G28/G28*100","v":{"$error":"#DIV/0!"}},{"$error":"#DIV/0!"}]
[14,"Záložní lokalita pro Web CZSO",1,0.92,24,"5x10",null,3.1168831168831169E-2,{"$f":"Nabidka_MIN!G29/G29*100","v":{"$error":"#DIV/0!"}},{"$error":"#DIV/0!"}]
[15,"SSO, ESB, JBOSS \n(Single-Sign-On systém jednotného přihlašování, \nEnerprise service bus)",1,0.92,24,"5x10",null,2.4935064935064935E-2,{"$f":"Nabidka_MIN!G30/G30*100","v":{"$error":"#DIV/0!"}},{"$error":"#DIV/0!"}]
[]
[null,"Součet cen za zajištění podpory SIS s garantovanou dostupností: (cena v Kč za čtvrtletí bez DPH) ",null,null,null,null,{"$f":"SUM(G10:G30)","v":0}]
[]
[]
[]
[null,"Součet cen za zajištění podpory SIS s garantovanou dostupností: (cena v Kč za čtvrtletí bez DPH) součet cen z každého řádku za skupinou funkčních bloků přepočtenou (vynásobenou) na období plnění 4 let, tj. 16 čtvrtletí.\n\nPro tento součet cen stanovuje zadavatel maximálně přípustnou hodnotu, která pro \nčást 1 činí 19 mil. Kč\ns tím, že její překročení je důvodem pro vyřazení nabídky. ",null,null,null,null,{"$f":"G32*16","v":0}]
[]
[]
[]
[null,"Předmět plnění: ","Schéma hodnocení:","Váha:"]
[null,"Služby rozvoje","Cena",0.16]
[]
[null,"2.a Cena za MD při obecném požadavku rozvoj na poskytnutí MD v termínech v kategorii A,B,C (cena v Kč za MD bez DPH)"]
[null,null,"Minimální hodnota pro hodnocení","Maximální hodnota","Nabízená hodnota "]
[null,"Prioritní MD NDB - kategorie A – poskytnutí služby se začátkem realizace do 1 dne",1,18000,null,null,null,8.0000000000000002E-3,{"$f":"Nabidka_MIN!E45/E45*100","v":{"$error":"#DIV/0!"}},{"$f":"I45*H45","v":{"$error":"#DIV/0!"}}]
[null,"Prioritní MD - kategorie B – poskytnutí služby se začátkem realizace od 2 do 5 dnů",1,16000,null,null,null,6.0000000000000001E-3,{"$f":"Nabidka_MIN!E46/E46*100","v":{"$error":"#DIV/0!"}},{"$error":"#DIV/0!"}]
[null,"MD - kategorie C – poskytnutí služby se začátkem realizace od 6 dnů do 1 měsíce, s tím, že tato kategorie pokrývá i služby v rámci SIS, které mohou mít i delší dobu  plnění",1,12000,null,null,null,0.09,{"$f":"Nabidka_MIN!E47/E47*100","v":{"$error":"#DIV/0!"}},{"$error":"#DIV/0!"}]
[]
[null,"2.b Cena za předmět plnění - specifikované požadavky"]
[null,null,"Minimální hodnota pro hodnocení","Maximální hodnota","Nabízená hodnota "]
[null,"Analýza změn při migraci na ORACLE verze 12\nAnalýza potřebných úprav databázových procedur",1,200000,null,null,null,5.0000000000000001E-3,{"$f":"Nabidka_MIN!E51/E51*100","v":{"$error":"#DIV/0!"}},{"$f":"I51*H51","v":{"$error":"#DIV/0!"}}]
[null,"Analýza změn při migraci na ORACLE verze 12\nAnalýza potřebných úprav, resp. optimalizace aplikací",1,300000,null,null,null,7.0000000000000001E-3,{"$f":"Nabidka_MIN!E52/E52*100","v":{"$error":"#DIV/0!"}},{"$error":"#DIV/0!"}]
[null,"Požadavky na změnu - rozvoj funkcionalit dle funkčních bloků",1,3500000,null,null,null,4.3999999999999997E-2,{"$f":"Nabidka_MIN!E53/E53*100","v":{"$error":"#DIV/0!"}},{"$error":"#DIV/0!"}]
[]
[]
[]
[null,"Předmět plnění: ","Schéma hodnocení:","Váha:"]
[null,"Služby ostatní","Cena",0.04]
[]
[null,"3.a Cena za MD při požadavku na poskytnutí služby v termínech v kategorii A,B,C (cena v Kč za MD bez DPH)"]
[null,null,"Minimální hodnota pro hodnocení","Maximální hodnota","Nabízená hodnota "]
[null,"Prioritní MD NDB - kategorie A – poskytnutí služby se začátkem realizace do 1 dne",1,18000,null,null,null,2.5714285714285717E-3,{"$f":"Nabidka_MIN!E62/E62*100","v":{"$error":"#DIV/0!"}},{"$f":"I62*H62","v":{"$error":"#DIV/0!"}}]
[null,"Prioritní MD - kategorie B – poskytnutí služby se začátkem realizace od 2 do 5 dnů",1,16000,null,null,null,2.2857142857142859E-3,{"$f":"Nabidka_MIN!E63/E63*100","v":{"$error":"#DIV/0!"}},{"$error":"#DIV/0!"}]
[null,"MD - kategorie C – poskytnutí služby se začátkem realizace od 6 dnů do 1 měsíce, s tím, že tato kategorie pokrývá i služby v rámci SIS, které mohou mít i delší dobu  plnění",1,12000,null,null,null,7.8571428571428577E-3,{"$f":"Nabidka_MIN!E64/E64*100","v":{"$error":"#DIV/0!"}},{"$error":"#DIV/0!"}]
[]
[null,"3.b Cena za předmět plnění - specifikované požadavky"]
[null,null,"Minimální hodnota pro hodnocení","Maximální hodnota","Nabízená hodnota "]
[null,"Zavedení nástroje pro řízení a dokumentaci poskytovaných služeb, včetně školení interních uživatelů ",1,120000,null,null,null,3.5714285714285713E-3,{"$f":"Nabidka_MIN!E68/E68*100","v":{"$error":"#DIV/0!"}},{"$f":"I68*H68","v":{"$error":"#DIV/0!"}}]
[null,"Správa a podpora nástroje pro řízení a dokumentaci poskytovaných služeb,  s garantovanou dostupností 95% na čtvrtletní bázi (cena za 1 čtvrtletí poskytovaných služeb, vč. služby Servisdesk)",1,100000,null,null,null,1.28571428571429E-2,{"$f":"Nabidka_MIN!E69/E69*100","v":{"$error":"#DIV/0!"}},{"$error":"#DIV/0!"}]
[null,"Převedení licence pro provozování nástroje pro řízení a dokumentaci poskytovaných služeb",1,400000,null,null,null,5.7142857142857143E-3,{"$f":"Nabidka_MIN!E70/E70*100","v":{"$error":"#DIV/0!"}},{"$error":"#DIV/0!"}]
[null,"Nasazení nové verze APV SIS na Testovací a produkční prostředí nad rámec služeb servisu (čtvrtletní balíčky)",1,20000,null,null,null,2.2857142857142859E-3,{"$f":"Nabidka_MIN!E71/E71*100","v":{"$error":"#DIV/0!"}},{"$error":"#DIV/0!"}]
[null,"Nasazení hotfixu APV SIS na Testovací a produkční prostředí nad rámec služeb servisu (čtvrtletní balíčky)",1,20000,null,null,null,2.8571428571428571E-3,{"$f":"Nabidka_MIN!E72/E72*100","v":{"$error":"#DIV/0!"}},{"$error":"#DIV/0!"}]
[]
[]
[]
[]
[]
[]
[null,"Předmět plnění: ","Schéma hodnocení:","Váha:"]
[null,"Služby rozvoje a servisní služby\nLhůty pro odstranění vad","Kvalitativní\nLhůty",0.04]
[]
[null,null,"Minimální hodnota pro hodnocení","Maximální hodnota","Nabízená hodnota "]
[null,"4.a Lhůta na odstranění vady plnění (zjištěné v akceptačním řízení) v hodinách za pracovní dny"]
[null,"Vada kategorie A",1,120,null,null,null,1.2E-2,{"$f":"Nabidka_MIN!E84/E84*100","v":{"$error":"#DIV/0!"}},{"$f":"I84*H84","v":{"$error":"#DIV/0!"}}]
[null,"Vada kategorie B",1,240,null,null,null,8.0000000000000002E-3,{"$f":"Nabidka_MIN!E85/E85*100","v":{"$error":"#DIV/0!"}},{"$error":"#DIV/0!"}]
[null,"Vada kategorie C",1,504,null,null,null,4.0000000000000001E-3,{"$f":"Nabidka_MIN!E86/E86*100","v":{"$error":"#DIV/0!"}},{"$error":"#DIV/0!"}]
[]
[null,"4.b Lhůta na odstranění záruční vady plnění v hodinách za pracovní dny "]
[null,"Vada kategorie A",1,120,null,null,null,8.0000000000000002E-3,{"$f":"Nabidka_MIN!E89/E89*100","v":{"$error":"#DIV/0!"}},{"$f":"I89*H89","v":{"$error":"#DIV/0!"}}]
[null,"Vada kategorie B",1,240,null,null,null,5.0000000000000001E-3,{"$f":"Nabidka_MIN!E90/E90*100","v":{"$error":"#DIV/0!"}},{"$error":"#DIV/0!"}]
[null,"Vada kategorie C",1,504,null,null,null,3.0000000000000001E-3,{"$f":"Nabidka_MIN!E91/E91*100","v":{"$error":"#DIV/0!"}},{"$error":"#DIV/0!"}]
[]
[null,"Pozn.:"]
[null,"U lhůt pro odstranění vad se uvažuje 1 den v délce 24 hodin"]
[]
[]
[null,"Předmět plnění: ","Schéma hodnocení:","Váha:"]
[null,"Služby","Kvalitativní\nPříklad",0.24]
[]
[null,"5. Zpracování příkladu poskytovaných služeb"]
[null,null,"Minimální hodnota bodů","Maximální  hodnota bodů","Počet bodů"]
[null,"Zpracování příkladu řízení poskytovaných služeb",0,5,null,null,null,0.08,{"$f":"E102/Nabidka_MIN!E102*100","v":{"$error":"#DIV/0!"}},{"$f":"I102*H102","v":{"$error":"#DIV/0!"}}]
[null,"Zpracování příkladu Navigace kurzoru v rámci PDF formulářů",0,2,null,null,null,0.16,{"$f":"E103/Nabidka_MIN!E103*100","v":{"$error":"#DIV/0!"}},{"$error":"#DIV/0!"}]
[]
[null,"Předmět plnění: ","Schéma hodnocení:","Váha:"]
[null,"Služby","Kvalitativní\nProvozní parametry",0.12]
[]
[null,"6. Provozní režim a dostupnost u skupin funkčních bloků uvedené v tabulce 1. Cena za zajištění podpory SIS s garantovanou dostupností"]
[null,null,"Minimální hodnota bodů","Maximální  hodnota bodů","Počet bodů"]
[null,"Číslo skupiny: 11,12"]
[null,"Rozšíření provozního režimu na 5x12",0,8]
[null,"Zvýšení dostupnosti na 95%",0,14]
[null,"Zvýšení dostupnosti na 97%",0,20]
[null,"Číslo skupiny: 13, 14 a 15"]
[null,"Rozšíření provozního režimu na 5x12",0,8]
[null,"Rozšíření provozního režimu na 7x16",0,22]
[null,"Rozšíření provozního režimu na 7x24",0,34]
[null,"Zvýšení dostupnosti na 95%",0,14]
[null,"Zvýšení dostupnosti na 97%",0,20]
[null,"Celkem",0,82,{"$f":"SUM(E111:E119)","v":0},null,null,0.12,{"$f":"E120/Nabidka_MIN!E120*100","v":{"$error":"#DIV/0!"}},{"$f":"I120*H120","v":{"$error":"#DIV/0!"}}]

{"sheet":"Nabidka5","index":5,"n_rows":120,"n_cols":10,"rows_kept":120,"cut":false,"hidden":false,"merged":[[109,1,109,3],[113,1,113,3],[48,1,48,3],[59,1,59,3],[87,1,87,3],[65,1,65,3],[82,1,82,3],[99,1,99,4],[107,1,107,3],[1,1,1,6],[7,1,7,6],[31,1,31,5],[35,1,35,5],[42,1,42,3]]}
[null,"Příloha č. 2A zadávací dokumentace\nZávazný formulář pro účely hodnocení část 1","Číslo nabídky:",5,"Účastník ZŘ:","EE"]
[null,"Účastník zadávacího řízení vyplňuje nebo upravuje žlutě podbarvené položky. \nU položek vyplněných zadavatelem je oprávněn změnit hodnotu pouze na vyšší - je-li uvedena mininimální hodnota, resp. na nižší - je-li uvedena maximální hodnota.",null,null,null,null,null,null,"Body za položky","Body za položky s vahou"]
[null,"Zeleně podbarvená pole doplňuje zadavatel na základě hodnocení.",null,null,null,null,null,null,"Celkem","Celkem"]
[]
[null,"Předmět plnění: ","Schéma hodnocení:","Váha:",null,null,null,null,{"$f":"SUM(I10:I120)","v":{"$error":"#DIV/0!"}},{"$f":"SUM(J10:J120)","v":{"$error":"#DIV/0!"}}]
[null,"Servisní služby","Cena",0.4]
[]
[null,"1. Cena za zajištění podpory SIS s garantovanou dostupností: (cena v Kč za čtvrtletí bez DPH)"]
["Číslo\n skupiny","Skupina funkčních bloků\nFunkční bloky jsou seskupeny a ohraničeny dvojitou čarou, vyplněná cena služeb pokrývá vždy celou skupinu funkčních bloků, resp. jejich seskupení ","Nabídka pro část veřejné zakázky ","Garantovaná dostupnost v %\n(minimální)","Lhůta na odstranění vady kat. A v hodinách (maximální)","Provozní režim\n(minimální)","Cena v Kč","Váha položky v %","Body za položku","Body za položku s vahou"]
[1,"RICHARD - Generátor tvorby projektů",1,0.9,48,"5x8",null,5.1948051948051957E-3,{"$f":"Nabidka_MIN!G10/G10*100","v":{"$error":"#DIV/0!"}},{"$f":"I10*H10","v":{"$error":"#DIV/0!"}}]
[1,"ISAAC - Konvertor popisu dat a kontrol",1,0.9,48,"5x8",null,2.0779220779220783E-2,{"$f":"Nabidka_MIN!G11/G11*100","v":{"$error":"#DIV/0!"}},{"$f":"I11*H11","v":{"$error":"#DIV/0!"}}]
[1,"ENRICO - Generátor grafické podoby výkazu",1,0.9,48,"5x8",null,2.5974025974025972E-2,{"$f":"Nabidka_MIN!G12/G12*100","v":{"$error":"#DIV/0!"}},{"$error":"#DIV/0!"}]
[2,"Požadavky",1,0.9,48,"5x8",null,8.3116883116883117E-3,{"$f":"Nabidka_MIN!G13/G13*100","v":{"$error":"#DIV/0!"}},{"$error":"#DIV/0!"}]
[2,"HSU - Harmonogram statistických úloh",1,0.9,48,"5x8",null,3.1168831168831169E-3,{"$f":"Nabidka_MIN!G14/G14*100","v":{"$error":"#DIV/0!"}},{"$error":"#DIV/0!"}]
[2,"Integrace a požadavky na HW, OMI - Obsahově metodická integrace",1,0.9,48,"5x8",null,3.1168831168831169E-3,{"$f":"Nabidka_MIN!G15/G15*100","v":{"$error":"#DIV/0!"}},{"$error":"#DIV/0!"}]
[5,"C-I/O - Centrál IN/OUT",1,0.9,48,"5x8",null,5.1948051948051957E-3,{"$f":"Nabidka_MIN!G16/G16*100","v":{"$error":"#DIV/0!"}},{"$error":"#DIV/0!"}]
[5,"SMS-KVALITA - Statistický metainformační systém, kvalita",1,0.9,48,"5x8",null,2.0779220779220783E-2,{"$f":"Nabidka_MIN!G17/G17*100","v":{"$error":"#DIV/0!"}},{"$error":"#DIV/0!"}]
[5,"SMS-VYSTUPY (včetně CASOVE RADY) - Statistický metainformační systém, výstupy a časové ředy",1,0.9,48,"5x8",null,1.5584415584415584E-2,{"$f":"Nabidka_MIN!G18/G18*100","v":{"$error":"#DIV/0!"}},{"$error":"#DIV/0!"}]
[5,"GVO - Generátor výstupních objektů",1,0.9,48,"5x8",null,1.0389610389610391E-2,{"$f":"Nabidka_MIN!G19/G19*100","v":{"$error":"#DIV/0!"}},{"$error":"#DIV/0!"}]
[8,"Registr uživatelů diseminačních produktů",1,0.9,48,"5x8",null,1.0389610389610391E-2,{"$f":"Nabidka_MIN!G20/G20*100","v":{"$error":"#DIV/0!"}},{"$error":"#DIV/0!"}]
[8,"Monitoring diseminace a evidence zpětné vazby",1,0.9,48,"5x8",null,5.1948051948051957E-3,{"$f":"Nabidka_MIN!G21/G21*100","v":{"$error":"#DIV/0!"}},{"$error":"#DIV/0!"}]
[8,"Plánování a řízení diseminace (Katalog produktů)",1,0.9,48,"5x8",null,1.0389610389610391E-2,{"$f":"Nabidka_MIN!G22/G22*100","v":{"$error":"#DIV/0!"}},{"$error":"#DIV/0!"}]
[8,"Podpora ekonomických procesů diseminace",1,0.9,48,"5x8",null,1.0389610389610391E-2,{"$f":"Nabidka_MIN!G23/G23*100","v":{"$error":"#DIV/0!"}},{"$error":"#DIV/0!"}]
[8,"Vnitřní rozhraní SIS/DISEMINACE",1,0.9,48,"5x8",null,5.1948051948051957E-3,{"$f":"Nabidka_MIN!G24/G24*100","v":{"$error":"#DIV/0!"}},{"$error":"#DIV/0!"}]
[11,"DANTE - Hromadné pořizování výkazů",1,0.92,24,"5x10",null,4.6753246753246755E-2,{"$f":"Nabidka_MIN!G25/G25*100","v":{"$error":"#DIV/0!"}},{"$error":"#DIV/0!"}]
[12,"SMS-CENTRAL, Statistický metainformační systém, řízení centrálního zpracování",1,0.92,24,"5x10",null,1.7662337662337664E-2,{"$f":"Nabidka_MIN!G26/G26*100","v":{"$error":"#DIV/0!"}},{"$error":"#DIV/0!"}]
[13,"DANTE WEB, Pořizování statistických formulářů zpravodajskými jednotkami",1,0.92,24,"5x10",null,4.6753246753246755E-2,{"$f":"Nabidka_MIN!G27/G27*100","v":{"$error":"#DIV/0!"}},{"$error":"#DIV/0!"}]
[14,"Web CZSO - Vnější rozhraní SIS/DISEMINACE",1,0.92,24,"5x10",null,7.2727272727272738E-2,{"$f":"Nabidka_MIN!G28/G28*100","v":{"$error":"#DIV/0!"}},{"$error":"#DIV/0!"}]
[14,"Záložní lokalita pro Web CZSO",1,0.92,24,"5x10",null,3.1168831168831169E-2,{"$f":"Nabidka_MIN!G29/G29*100","v":{"$error":"#DIV/0!"}},{"$error":"#DIV/0!"}]
[15,"SSO, ESB, JBOSS \n(Single-Sign-On systém jednotného přihlašování, \nEnerprise service bus)",1,0.92,24,"5x10",null,2.4935064935064935E-2,{"$f":"Nabidka_MIN!G30/G30*100","v":{"$error":"#DIV/0!"}},{"$error":"#DIV/0!"}]
[]
[null,"Součet cen za zajištění podpory SIS s garantovanou dostupností: (cena v Kč za čtvrtletí bez DPH) ",null,null,null,null,{"$f":"SUM(G10:G30)","v":0}]
[]
[]
[]
[null,"Součet cen za zajištění podpory SIS s garantovanou dostupností: (cena v Kč za čtvrtletí bez DPH) součet cen z každého řádku za skupinou funkčních bloků přepočtenou (vynásobenou) na období plnění 4 let, tj. 16 čtvrtletí.\n\nPro tento součet cen stanovuje zadavatel maximálně přípustnou hodnotu, která pro \nčást 1 činí 19 mil. Kč\ns tím, že její překročení je důvodem pro vyřazení nabídky. ",null,null,null,null,{"$f":"G32*16","v":0}]
[]
[]
[]
[null,"Předmět plnění: ","Schéma hodnocení:","Váha:"]
[null,"Služby rozvoje","Cena",0.16]
[]
[null,"2.a Cena za MD při obecném požadavku rozvoj na poskytnutí MD v termínech v kategorii A,B,C (cena v Kč za MD bez DPH)"]
[null,null,"Minimální hodnota pro hodnocení","Maximální hodnota","Nabízená hodnota "]
[null,"Prioritní MD NDB - kategorie A – poskytnutí služby se začátkem realizace do 1 dne",1,18000,null,null,null,8.0000000000000002E-3,{"$f":"Nabidka_MIN!E45/E45*100","v":{"$error":"#DIV/0!"}},{"$f":"I45*H45","v":{"$error":"#DIV/0!"}}]
[null,"Prioritní MD - kategorie B – poskytnutí služby se začátkem realizace od 2 do 5 dnů",1,16000,null,null,null,6.0000000000000001E-3,{"$f":"Nabidka_MIN!E46/E46*100","v":{"$error":"#DIV/0!"}},{"$error":"#DIV/0!"}]
[null,"MD - kategorie C – poskytnutí služby se začátkem realizace od 6 dnů do 1 měsíce, s tím, že tato kategorie pokrývá i služby v rámci SIS, které mohou mít i delší dobu  plnění",1,12000,null,null,null,0.09,{"$f":"Nabidka_MIN!E47/E47*100","v":{"$error":"#DIV/0!"}},{"$error":"#DIV/0!"}]
[]
[null,"2.b Cena za předmět plnění - specifikované požadavky"]
[null,null,"Minimální hodnota pro hodnocení","Maximální hodnota","Nabízená hodnota "]
[null,"Analýza změn při migraci na ORACLE verze 12\nAnalýza potřebných úprav databázových procedur",1,200000,null,null,null,5.0000000000000001E-3,{"$f":"Nabidka_MIN!E51/E51*100","v":{"$error":"#DIV/0!"}},{"$f":"I51*H51","v":{"$error":"#DIV/0!"}}]
[null,"Analýza změn při migraci na ORACLE verze 12\nAnalýza potřebných úprav, resp. optimalizace aplikací",1,300000,null,null,null,7.0000000000000001E-3,{"$f":"Nabidka_MIN!E52/E52*100","v":{"$error":"#DIV/0!"}},{"$error":"#DIV/0!"}]
[null,"Požadavky na změnu - rozvoj funkcionalit dle funkčních bloků",1,3500000,null,null,null,4.3999999999999997E-2,{"$f":"Nabidka_MIN!E53/E53*100","v":{"$error":"#DIV/0!"}},{"$error":"#DIV/0!"}]
[]
[]
[]
[null,"Předmět plnění: ","Schéma hodnocení:","Váha:"]
[null,"Služby ostatní","Cena",0.04]
[]
[null,"3.a Cena za MD při požadavku na poskytnutí služby v termínech v kategorii A,B,C (cena v Kč za MD bez DPH)"]
[null,null,"Minimální hodnota pro hodnocení","Maximální hodnota","Nabízená hodnota "]
[null,"Prioritní MD NDB - kategorie A – poskytnutí služby se začátkem realizace do 1 dne",1,18000,null,null,null,2.5714285714285717E-3,{"$f":"Nabidka_MIN!E62/E62*100","v":{"$error":"#DIV/0!"}},{"$f":"I62*H62","v":{"$error":"#DIV/0!"}}]
[null,"Prioritní MD - kategorie B – poskytnutí služby se začátkem realizace od 2 do 5 dnů",1,16000,null,null,null,2.2857142857142859E-3,{"$f":"Nabidka_MIN!E63/E63*100","v":{"$error":"#DIV/0!"}},{"$error":"#DIV/0!"}]
[null,"MD - kategorie C – poskytnutí služby se začátkem realizace od 6 dnů do 1 měsíce, s tím, že tato kategorie pokrývá i služby v rámci SIS, které mohou mít i delší dobu  plnění",1,12000,null,null,null,7.8571428571428577E-3,{"$f":"Nabidka_MIN!E64/E64*100","v":{"$error":"#DIV/0!"}},{"$error":"#DIV/0!"}]
[]
[null,"3.b Cena za předmět plnění - specifikované požadavky"]
[null,null,"Minimální hodnota pro hodnocení","Maximální hodnota","Nabízená hodnota "]
[null,"Zavedení nástroje pro řízení a dokumentaci poskytovaných služeb, včetně školení interních uživatelů ",1,120000,null,null,null,3.5714285714285713E-3,{"$f":"Nabidka_MIN!E68/E68*100","v":{"$error":"#DIV/0!"}},{"$f":"I68*H68","v":{"$error":"#DIV/0!"}}]
[null,"Správa a podpora nástroje pro řízení a dokumentaci poskytovaných služeb,  s garantovanou dostupností 95% na čtvrtletní bázi (cena za 1 čtvrtletí poskytovaných služeb, vč. služby Servisdesk)",1,100000,null,null,null,1.28571428571429E-2,{"$f":"Nabidka_MIN!E69/E69*100","v":{"$error":"#DIV/0!"}},{"$error":"#DIV/0!"}]
[null,"Převedení licence pro provozování nástroje pro řízení a dokumentaci poskytovaných služeb",1,400000,null,null,null,5.7142857142857143E-3,{"$f":"Nabidka_MIN!E70/E70*100","v":{"$error":"#DIV/0!"}},{"$error":"#DIV/0!"}]
[null,"Nasazení nové verze APV SIS na Testovací a produkční prostředí nad rámec služeb servisu (čtvrtletní balíčky)",1,20000,null,null,null,2.2857142857142859E-3,{"$f":"Nabidka_MIN!E71/E71*100","v":{"$error":"#DIV/0!"}},{"$error":"#DIV/0!"}]
[null,"Nasazení hotfixu APV SIS na Testovací a produkční prostředí nad rámec služeb servisu (čtvrtletní balíčky)",1,20000,null,null,null,2.8571428571428571E-3,{"$f":"Nabidka_MIN!E72/E72*100","v":{"$error":"#DIV/0!"}},{"$error":"#DIV/0!"}]
[]
[]
[]
[]
[]
[]
[null,"Předmět plnění: ","Schéma hodnocení:","Váha:"]
[null,"Služby rozvoje a servisní služby\nLhůty pro odstranění vad","Kvalitativní\nLhůty",0.04]
[]
[null,null,"Minimální hodnota pro hodnocení","Maximální hodnota","Nabízená hodnota "]
[null,"4.a Lhůta na odstranění vady plnění (zjištěné v akceptačním řízení) v hodinách za pracovní dny"]
[null,"Vada kategorie A",1,120,null,null,null,1.2E-2,{"$f":"Nabidka_MIN!E84/E84*100","v":{"$error":"#DIV/0!"}},{"$f":"I84*H84","v":{"$error":"#DIV/0!"}}]
[null,"Vada kategorie B",1,240,null,null,null,8.0000000000000002E-3,{"$f":"Nabidka_MIN!E85/E85*100","v":{"$error":"#DIV/0!"}},{"$error":"#DIV/0!"}]
[null,"Vada kategorie C",1,504,null,null,null,4.0000000000000001E-3,{"$f":"Nabidka_MIN!E86/E86*100","v":{"$error":"#DIV/0!"}},{"$error":"#DIV/0!"}]
[]
[null,"4.b Lhůta na odstranění záruční vady plnění v hodinách za pracovní dny "]
[null,"Vada kategorie A",1,120,null,null,null,8.0000000000000002E-3,{"$f":"Nabidka_MIN!E89/E89*100","v":{"$error":"#DIV/0!"}},{"$f":"I89*H89","v":{"$error":"#DIV/0!"}}]
[null,"Vada kategorie B",1,240,null,null,null,5.0000000000000001E-3,{"$f":"Nabidka_MIN!E90/E90*100","v":{"$error":"#DIV/0!"}},{"$error":"#DIV/0!"}]
[null,"Vada kategorie C",1,504,null,null,null,3.0000000000000001E-3,{"$f":"Nabidka_MIN!E91/E91*100","v":{"$error":"#DIV/0!"}},{"$error":"#DIV/0!"}]
[]
[null,"Pozn.:"]
[null,"U lhůt pro odstranění vad se uvažuje 1 den v délce 24 hodin"]
[]
[]
[null,"Předmět plnění: ","Schéma hodnocení:","Váha:"]
[null,"Služby","Kvalitativní\nPříklad",0.24]
[]
[null,"5. Zpracování příkladu poskytovaných služeb"]
[null,null,"Minimální hodnota bodů","Maximální  hodnota bodů","Počet bodů"]
[null,"Zpracování příkladu řízení poskytovaných služeb",0,5,null,null,null,0.08,{"$f":"E102/Nabidka_MIN!E102*100","v":{"$error":"#DIV/0!"}},{"$f":"I102*H102","v":{"$error":"#DIV/0!"}}]
[null,"Zpracování příkladu Navigace kurzoru v rámci PDF formulářů",0,2,null,null,null,0.16,{"$f":"E103/Nabidka_MIN!E103*100","v":{"$error":"#DIV/0!"}},{"$error":"#DIV/0!"}]
[]
[null,"Předmět plnění: ","Schéma hodnocení:","Váha:"]
[null,"Služby","Kvalitativní\nProvozní parametry",0.12]
[]
[null,"6. Provozní režim a dostupnost u skupin funkčních bloků uvedené v tabulce 1. Cena za zajištění podpory SIS s garantovanou dostupností"]
[null,null,"Minimální hodnota bodů","Maximální  hodnota bodů","Počet bodů"]
[null,"Číslo skupiny: 11,12"]
[null,"Rozšíření provozního režimu na 5x12",0,8]
[null,"Zvýšení dostupnosti na 95%",0,14]
[null,"Zvýšení dostupnosti na 97%",0,20]
[null,"Číslo skupiny: 13, 14 a 15"]
[null,"Rozšíření provozního režimu na 5x12",0,8]
[null,"Rozšíření provozního režimu na 7x16",0,22]
[null,"Rozšíření provozního režimu na 7x24",0,34]
[null,"Zvýšení dostupnosti na 95%",0,14]
[null,"Zvýšení dostupnosti na 97%",0,20]
[null,"Celkem",0,82,{"$f":"SUM(E111:E119)","v":0},null,null,0.12,{"$f":"E120/Nabidka_MIN!E120*100","v":{"$error":"#DIV/0!"}},{"$f":"I120*H120","v":{"$error":"#DIV/0!"}}]

{"sheet":"Nabidka_MIN","index":6,"n_rows":120,"n_cols":8,"rows_kept":120,"cut":false,"hidden":false,"merged":[[109,1,109,3],[113,1,113,3],[48,1,48,3],[59,1,59,3],[87,1,87,3],[65,1,65,3],[82,1,82,3],[99,1,99,4],[107,1,107,3],[1,1,1,6],[7,1,7,6],[31,1,31,5],[35,1,35,5],[42,1,42,3]]}
[null,"Příloha č. 2A zadávací dokumentace\nZávazný formulář pro účely hodnocení část 1","Číslo nabídky:","MIN","Účastník ZŘ:","Nejvýhodnější hodnota"]
[]
[]
[]
[null,"Předmět plnění: ","Schéma hodnocení:","Váha:"]
[null,"Servisní služby","Cena",0.4]
[]
[null,"1. Cena za zajištění podpory SIS s garantovanou dostupností: (cena v Kč za čtvrtletí bez DPH)"]
["Číslo\n skupiny","Skupina funkčních bloků\nFunkční bloky jsou seskupeny a ohraničeny dvojitou čarou, vyplněná cena služeb pokrývá vždy celou skupinu funkčních bloků, resp. jejich seskupení ","Nabídka pro část veřejné zakázky ","Garantovaná dostupnost v %\n(minimální)","Lhůta na odstranění vady kat. A v hodinách (maximální)","Provozní režim\n(minimální)","Cena v Kč","Váha položky v %"]
[1,"RICHARD - Generátor tvorby projektů",1,0.9,48,"5x8",{"$f":"MIN(Nabidka1!G10,Nabidka2!G10,Nabidka3!G10,Nabidka4!G10,Nabidka5!G10)","v":0},5.1948051948051957E-3]
[1,"ISAAC - Konvertor popisu dat a kontrol",1,0.9,48,"5x8",{"$f":"MIN(Nabidka1!G11,Nabidka2!G11,Nabidka3!G11,Nabidka4!G11,Nabidka5!G11)","v":0},2.0779220779220783E-2]
[1,"ENRICO - Generátor grafické podoby výkazu",1,0.9,48,"5x8",{"$f":"MIN(Nabidka1!G12,Nabidka2!G12,Nabidka3!G12,Nabidka4!G12,Nabidka5!G12)","v":0},2.5974025974025972E-2]
[2,"Požadavky",1,0.9,48,"5x8",{"$f":"MIN(Nabidka1!G13,Nabidka2!G13,Nabidka3!G13,Nabidka4!G13,Nabidka5!G13)","v":0},8.3116883116883117E-3]
[2,"HSU - Harmonogram statistických úloh",1,0.9,48,"5x8",{"$f":"MIN(Nabidka1!G14,Nabidka2!G14,Nabidka3!G14,Nabidka4!G14,Nabidka5!G14)","v":0},3.1168831168831169E-3]
[2,"Integrace a požadavky na HW, OMI - Obsahově metodická integrace",1,0.9,48,"5x8",{"$f":"MIN(Nabidka1!G15,Nabidka2!G15,Nabidka3!G15,Nabidka4!G15,Nabidka5!G15)","v":0},3.1168831168831169E-3]
[5,"C-I/O - Centrál IN/OUT",1,0.9,48,"5x8",{"$f":"MIN(Nabidka1!G16,Nabidka2!G16,Nabidka3!G16,Nabidka4!G16,Nabidka5!G16)","v":0},5.1948051948051957E-3]
[5,"SMS-KVALITA - Statistický metainformační systém, kvalita",1,0.9,48,"5x8",{"$f":"MIN(Nabidka1!G17,Nabidka2!G17,Nabidka3!G17,Nabidka4!G17,Nabidka5!G17)","v":0},2.0779220779220783E-2]
[5,"SMS-VYSTUPY (včetně CASOVE RADY) - Statistický metainformační systém, výstupy a časové ředy",1,0.9,48,"5x8",{"$f":"MIN(Nabidka1!G18,Nabidka2!G18,Nabidka3!G18,Nabidka4!G18,Nabidka5!G18)","v":0},1.5584415584415584E-2]
[5,"GVO - Generátor výstupních objektů",1,0.9,48,"5x8",{"$f":"MIN(Nabidka1!G19,Nabidka2!G19,Nabidka3!G19,Nabidka4!G19,Nabidka5!G19)","v":0},1.0389610389610391E-2]
[8,"Registr uživatelů diseminačních produktů",1,0.9,48,"5x8",{"$f":"MIN(Nabidka1!G20,Nabidka2!G20,Nabidka3!G20,Nabidka4!G20,Nabidka5!G20)","v":0},1.0389610389610391E-2]
[8,"Monitoring diseminace a evidence zpětné vazby",1,0.9,48,"5x8",{"$f":"MIN(Nabidka1!G21,Nabidka2!G21,Nabidka3!G21,Nabidka4!G21,Nabidka5!G21)","v":0},5.1948051948051957E-3]
[8,"Plánování a řízení diseminace (Katalog produktů)",1,0.9,48,"5x8",{"$f":"MIN(Nabidka1!G22,Nabidka2!G22,Nabidka3!G22,Nabidka4!G22,Nabidka5!G22)","v":0},1.0389610389610391E-2]
[8,"Podpora ekonomických procesů diseminace",1,0.9,48,"5x8",{"$f":"MIN(Nabidka1!G23,Nabidka2!G23,Nabidka3!G23,Nabidka4!G23,Nabidka5!G23)","v":0},1.0389610389610391E-2]
[8,"Vnitřní rozhraní SIS/DISEMINACE",1,0.9,48,"5x8",{"$f":"MIN(Nabidka1!G24,Nabidka2!G24,Nabidka3!G24,Nabidka4!G24,Nabidka5!G24)","v":0},5.1948051948051957E-3]
[11,"DANTE - Hromadné pořizování výkazů",1,0.92,24,"5x10",{"$f":"MIN(Nabidka1!G25,Nabidka2!G25,Nabidka3!G25,Nabidka4!G25,Nabidka5!G25)","v":0},4.6753246753246755E-2]
[12,"SMS-CENTRAL, Statistický metainformační systém, řízení centrálního zpracování",1,0.92,24,"5x10",{"$f":"MIN(Nabidka1!G26,Nabidka2!G26,Nabidka3!G26,Nabidka4!G26,Nabidka5!G26)","v":0},1.7662337662337664E-2]
[13,"DANTE WEB, Pořizování statistických formulářů zpravodajskými jednotkami",1,0.92,24,"5x10",{"$f":"MIN(Nabidka1!G27,Nabidka2!G27,Nabidka3!G27,Nabidka4!G27,Nabidka5!G27)","v":0},4.6753246753246755E-2]
[14,"Web CZSO - Vnější rozhraní SIS/DISEMINACE",1,0.92,24,"5x10",{"$f":"MIN(Nabidka1!G28,Nabidka2!G28,Nabidka3!G28,Nabidka4!G28,Nabidka5!G28)","v":0},7.2727272727272738E-2]
[14,"Záložní lokalita pro Web CZSO",1,0.92,24,"5x10",{"$f":"MIN(Nabidka1!G29,Nabidka2!G29,Nabidka3!G29,Nabidka4!G29,Nabidka5!G29)","v":0},3.1168831168831169E-2]
[15,"SSO, ESB, JBOSS \n(Single-Sign-On systém jednotného přihlašování, \nEnerprise service bus)",1,0.92,24,"5x10",{"$f":"MIN(Nabidka1!G30,Nabidka2!G30,Nabidka3!G30,Nabidka4!G30,Nabidka5!G30)","v":0},2.4935064935064935E-2]
[]
[null,"Součet cen za zajištění podpory SIS s garantovanou dostupností: (cena v Kč za čtvrtletí bez DPH) "]
[]
[]
[]
[null,"Součet cen za zajištění podpory SIS s garantovanou dostupností: (cena v Kč za čtvrtletí bez DPH) součet cen z každého řádku za skupinou funkčních bloků přepočtenou (vynásobenou) na období plnění 4 let, tj. 16 čtvrtletí.\n\nPro tento součet cen stanovuje zadavatel maximálně přípustnou hodnotu, která pro \nčást 1 činí 19 mil. Kč\ns tím, že její překročení je důvodem pro vyřazení nabídky. ",null,null,null,null,0]
[]
[]
[]
[null,"Předmět plnění: ","Schéma hodnocení:","Váha:"]
[null,"Služby rozvoje","Cena",0.16]
[]
[null,"2.a Cena za MD při obecném požadavku rozvoj na poskytnutí MD v termínech v kategorii A,B,C (cena v Kč za MD bez DPH)"]
[null,null,"Minimální hodnota pro hodnocení","Maximální hodnota","Nabízená hodnota "]
[null,"Prioritní MD NDB - kategorie A – poskytnutí služby se začátkem realizace do 1 dne",1,18000,{"$f":"MIN(Nabidka1!E45,Nabidka2!E45,Nabidka3!E45,Nabidka4!E45,Nabidka5!E45)","v":0},null,null,8.0000000000000002E-3]
[null,"Prioritní MD - kategorie B – poskytnutí služby se začátkem realizace od 2 do 5 dnů",1,16000,{"$f":"MIN(Nabidka1!E46,Nabidka2!E46,Nabidka3!E46,Nabidka4!E46,Nabidka5!E46)","v":0},null,null,6.0000000000000001E-3]
[null,"MD - kategorie C – poskytnutí služby se začátkem realizace od 6 dnů do 1 měsíce, s tím, že tato kategorie pokrývá i služby v rámci SIS, které mohou mít i delší dobu  plnění",1,12000,{"$f":"MIN(Nabidka1!E47,Nabidka2!E47,Nabidka3!E47,Nabidka4!E47,Nabidka5!E47)","v":0},null,null,0.09]
[]
[null,"2.b Cena za předmět plnění - specifikované požadavky"]
[null,null,"Minimální hodnota pro hodnocení","Maximální hodnota","Nabízená hodnota "]
[null,"Analýza změn při migraci na ORACLE verze 12\nAnalýza potřebných úprav databázových procedur",1,200000,{"$f":"MIN(Nabidka1!E51,Nabidka2!E51,Nabidka3!E51,Nabidka4!E51,Nabidka5!E51)","v":0},null,null,5.0000000000000001E-3]
[null,"Analýza změn při migraci na ORACLE verze 12\nAnalýza potřebných úprav, resp. optimalizace aplikací",1,300000,{"$f":"MIN(Nabidka1!E52,Nabidka2!E52,Nabidka3!E52,Nabidka4!E52,Nabidka5!E52)","v":0},null,null,7.0000000000000001E-3]
[null,"Požadavky na změnu - rozvoj funkcionalit dle funkčních bloků",1,3500000,{"$f":"MIN(Nabidka1!E53,Nabidka2!E53,Nabidka3!E53,Nabidka4!E53,Nabidka5!E53)","v":0},null,null,4.3999999999999997E-2]
[]
[]
[]
[null,"Předmět plnění: ","Schéma hodnocení:","Váha:"]
[null,"Služby ostatní","Cena",0.04]
[]
[null,"3.a Cena za MD při požadavku na poskytnutí služby v termínech v kategorii A,B,C (cena v Kč za MD bez DPH)"]
[null,null,"Minimální hodnota pro hodnocení","Maximální hodnota","Nabízená hodnota "]
[null,"Prioritní MD NDB - kategorie A – poskytnutí služby se začátkem realizace do 1 dne",1,18000,{"$f":"MIN(Nabidka1!E62,Nabidka2!E62,Nabidka3!E62,Nabidka4!E62,Nabidka5!E62)","v":0},null,null,2.5714285714285717E-3]
[null,"Prioritní MD - kategorie B – poskytnutí služby se začátkem realizace od 2 do 5 dnů",1,16000,{"$f":"MIN(Nabidka1!E63,Nabidka2!E63,Nabidka3!E63,Nabidka4!E63,Nabidka5!E63)","v":0},null,null,2.2857142857142859E-3]
[null,"MD - kategorie C – poskytnutí služby se začátkem realizace od 6 dnů do 1 měsíce, s tím, že tato kategorie pokrývá i služby v rámci SIS, které mohou mít i delší dobu  plnění",1,12000,{"$f":"MIN(Nabidka1!E64,Nabidka2!E64,Nabidka3!E64,Nabidka4!E64,Nabidka5!E64)","v":0},null,null,7.8571428571428577E-3]
[]
[null,"3.b Cena za předmět plnění - specifikované požadavky"]
[null,null,"Minimální hodnota pro hodnocení","Maximální hodnota","Nabízená hodnota "]
[null,"Zavedení nástroje pro řízení a dokumentaci poskytovaných služeb, včetně školení interních uživatelů ",1,120000,{"$f":"MIN(Nabidka1!E68,Nabidka2!E68,Nabidka3!E68,Nabidka4!E68,Nabidka5!E68)","v":0},null,null,3.5714285714285713E-3]
[null,"Správa a podpora nástroje pro řízení a dokumentaci poskytovaných služeb,  s garantovanou dostupností 95% na čtvrtletní bázi (cena za 1 čtvrtletí poskytovaných služeb, vč. služby Servisdesk)",1,100000,{"$f":"MIN(Nabidka1!E69,Nabidka2!E69,Nabidka3!E69,Nabidka4!E69,Nabidka5!E69)","v":0},null,null,1.28571428571429E-2]
[null,"Převedení licence pro provozování nástroje pro řízení a dokumentaci poskytovaných služeb",1,400000,{"$f":"MIN(Nabidka1!E70,Nabidka2!E70,Nabidka3!E70,Nabidka4!E70,Nabidka5!E70)","v":0},null,null,5.7142857142857143E-3]
[null,"Nasazení nové verze APV SIS na Testovací a produkční prostředí nad rámec služeb servisu (čtvrtletní balíčky)",1,20000,{"$f":"MIN(Nabidka1!E71,Nabidka2!E71,Nabidka3!E71,Nabidka4!E71,Nabidka5!E71)","v":0},null,null,2.2857142857142859E-3]
[null,"Nasazení hotfixu APV SIS na Testovací a produkční prostředí nad rámec služeb servisu (čtvrtletní balíčky)",1,20000,{"$f":"MIN(Nabidka1!E72,Nabidka2!E72,Nabidka3!E72,Nabidka4!E72,Nabidka5!E72)","v":0},null,null,2.8571428571428571E-3]
[]
[]
[]
[]
[]
[]
[null,"Předmět plnění: ","Schéma hodnocení:","Váha:"]
[null,"Služby rozvoje a servisní služby\nLhůty pro odstranění vad","Kvalitativní\nLhůty",0.04]
[]
[null,null,"Minimální hodnota pro hodnocení","Maximální hodnota","Nabízená hodnota "]
[null,"4.a Lhůta na odstranění vady plnění (zjištěné v akceptačním řízení) v hodinách za pracovní dny"]
[null,"Vada kategorie A",1,120,{"$f":"MIN(Nabidka1!E84,Nabidka2!E84,Nabidka3!E84,Nabidka4!E84,Nabidka5!E84)","v":0},null,null,1.2E-2]
[null,"Vada kategorie B",1,240,{"$f":"MIN(Nabidka1!E85,Nabidka2!E85,Nabidka3!E85,Nabidka4!E85,Nabidka5!E85)","v":0},null,null,8.0000000000000002E-3]
[null,"Vada kategorie C",1,504,{"$f":"MIN(Nabidka1!E86,Nabidka2!E86,Nabidka3!E86,Nabidka4!E86,Nabidka5!E86)","v":0},null,null,4.0000000000000001E-3]
[]
[null,"4.b Lhůta na odstranění záruční vady plnění v hodinách za pracovní dny "]
[null,"Vada kategorie A",1,120,{"$f":"MIN(Nabidka1!E89,Nabidka2!E89,Nabidka3!E89,Nabidka4!E89,Nabidka5!E89)","v":0},null,null,8.0000000000000002E-3]
[null,"Vada kategorie B",1,240,{"$f":"MIN(Nabidka1!E90,Nabidka2!E90,Nabidka3!E90,Nabidka4!E90,Nabidka5!E90)","v":0},null,null,5.0000000000000001E-3]
[null,"Vada kategorie C",1,504,{"$f":"MIN(Nabidka1!E91,Nabidka2!E91,Nabidka3!E91,Nabidka4!E91,Nabidka5!E91)","v":0},null,null,3.0000000000000001E-3]
[]
[null,"Pozn.:"]
[null,"U lhůt pro odstranění vad se uvažuje 1 den v délce 24 hodin"]
[]
[]
[null,"Předmět plnění: ","Schéma hodnocení:","Váha:"]
[null,"Služby","Kvalitativní\nPříklad",0.24]
[]
[null,"5. Zpracování příkladu poskytovaných služeb"]
[null,null,"Minimální hodnota bodů","Maximální  hodnota bodů","Počet bodů"]
[null,"Zpracování příkladu řízení poskytovaných služeb",0,5,{"$f":"MAX(Nabidka1!E102,Nabidka2!E102,Nabidka3!E102,Nabidka4!E102,Nabidka5!E102)","v":0},null,null,0.08]
[null,"Zpracování příkladu Navigace kurzoru v rámci PDF formulářů",0,2,{"$f":"MAX(Nabidka1!E103,Nabidka2!E103,Nabidka3!E103,Nabidka4!E103,Nabidka5!E103)","v":0},null,null,0.16]
[]
[null,"Předmět plnění: ","Schéma hodnocení:","Váha:"]
[null,"Služby","Kvalitativní\nProvozní parametry",0.12]
[]
[null,"6. Provozní režim a dostupnost u skupin funkčních bloků uvedené v tabulce 1. Cena za zajištění podpory SIS s garantovanou dostupností"]
[null,null,"Minimální hodnota bodů","Maximální  hodnota bodů","Počet bodů"]
[null,"Číslo skupiny: 11,12"]
[null,"Rozšíření provozního režimu na 5x12",0,8]
[null,"Zvýšení dostupnosti na 95%",0,14]
[null,"Zvýšení dostupnosti na 97%",0,20]
[null,"Číslo skupiny: 13, 14 a 15"]
[null,"Rozšíření provozního režimu na 5x12",0,8]
[null,"Rozšíření provozního režimu na 7x16",0,22]
[null,"Rozšíření provozního režimu na 7x24",0,34]
[null,"Zvýšení dostupnosti na 95%",0,14]
[null,"Zvýšení dostupnosti na 97%",0,20]
[null,"Celkem",0,82,{"$f":"MAX(Nabidka1!E120,Nabidka2!E120,Nabidka3!E120,Nabidka4!E120,Nabidka5!E120)","v":0},null,null,0.12]